Departmental Family,Entity,Date,Expense Type,Expense Area,Supplier,Invoice Number,Invoice Amount,Item Description,,
MOJ,LAA,29/01/18,EXP - PURCHASE OF GOODS/SERVICES - ICT OUTSOURCING & MAINT./SUPPORT - Application Maintenance and Support,ISD Management and Admin.,CAPGEMINI UK PLC,2600110158298,108039.60,IT Costs,,
MOJ,LAA,15/01/18,EXP - PURCHASE OF GOODS/SERVICES - OTHER - Translation / Interpreting Services,Central Funds,CLARION INTERPRETING LTD,53506,42587.69,Translation / Interpreting Services Costs,,
MOJ,LAA,18/01/18,EXP - PURCHASE OF GOODS/SERVICES - OTHER PROFESSIONAL SERVICES - Legal Services - Government Legal Department,Legal,GOVERNMENT LEGAL DEPARTMENT,A2553,197700.00,Legal Costs,,
MOJ,LAA,12/01/18,EXP - PURCHASE OF GOODS/SERVICES - ICT OUTSOURCING & MAINT./SUPPORT - Application Maintenance and Support,Civil Case Management - Newcastle,NORTHGATE PUBLIC SERVICES (UK) LTD,91399791,106020.00,IT Costs,,
MOJ,LAA,23/01/18,EXP - PURCHASE OF GOODS/SERVICES - ICT OUTSOURCING & MAINT./SUPPORT - Hosting,ISD Management and Admin.,REDCENTRIC SOLUTIONS LTD,236091,84592.56,IT Costs,,
MOJ,LAA,31/01/18,EXP - PURCHASE OF GOODS/SERVICES - ICT OUTSOURCING & MAINT./SUPPORT - Hosting,ISD Management and Admin.,REDCENTRIC SOLUTIONS LTD,REIN675,70252.56,IT Costs,,
MOJ,LAA,03/01/18,EXP - PURCHASE OF GOODS/SERVICES - OTHER TRAVEL - UK Other,Centralised Costs,REDFERN TRAVEL LTD,5451,47055.40,Travel Costs,,
MOJ,LAA,22/01/18,EXP - PURCHASE OF GOODS/SERVICES - ICT OUTSOURCING & MAINT./SUPPORT - Other,ISD Management and Admin.,REDROCK CONSULTING LTD,7426,45768.00,IT Costs,,
MOJ,LAA,11/01/18,EXP - PURCHASE OF GOODS/SERVICES - OTHER PROFESSIONAL SERVICES - LEGAL SERVICES - THIRD PARTY LEGAL COSTS,National Courts Core Team NCT,ROSSENDALES LTD,40089,80593.11,IT Costs,,
MOJ,LAA,11/01/18,EXP - PURCHASE OF GOODS/SERVICES - OTHER PROFESSIONAL SERVICES - LEGAL SERVICES - THIRD PARTY LEGAL COSTS,National Courts Core Team NCT,ROSSENDALES LTD,40090,55331.80,IT Costs,,
MOJ,LAA,10/01/18,EXP - PURCHASE OF GOODS/SERVICES - OTHER - Translation / Interpreting Services,Central Funds,THEBIGWORD INTERPRETING SERVICES LTD,90116601,593780.99,Translation / Interpreting Services Costs,,
MOJ,LAA,19/01/18,EXP - PURCHASE OF GOODS/SERVICES - OTHER - Translation / Interpreting Services,Central Funds,THEBIGWORD INTERPRETING SERVICES LTD,90117940,308080.40,Translation / Interpreting Services Costs,,
MOJ,LAA,12/01/18,EXP - PURCHASE OF GOODS/SERVICES - OTHER - Translation / Interpreting Services,Central Funds,THEBIGWORD INTERPRETING SERVICES LTD,90002473_11,98884.60,Translation / Interpreting Services Costs,,
MOJ,LAA,17/01/18,Higher Crime,LEGAL AID FUND,ZMS LEGAL LTD TA ZMS SOLICITORS,1386746:148790048,41445.56,Legal Aid Higher Crime,,
MOJ,LAA,31/01/18,Higher Crime,LEGAL AID FUND,YATES ARDERN,1396813:148871889,32184.01,Legal Aid Higher Crime,,
MOJ,LAA,17/01/18,Higher Crime,LEGAL AID FUND,YASMIN & SHAID SOLICITORS LTD,1386509:148796898,44575.77,Legal Aid Higher Crime,,
MOJ,LAA,31/01/18,Higher Crime,LEGAL AID FUND,YASMIN & SHAID SOLICITORS LTD,1396387:148885984,29664.55,Legal Aid Higher Crime,,
MOJ,LAA,17/01/18,Higher Crime,LEGAL AID FUND,YASMIN & SHAID SOLICITORS LTD,1386509:148783569,28472.18,Legal Aid Higher Crime,,
MOJ,LAA,31/01/18,Legal Help,LEGAL AID FUND,WOLTON & CO,1395844:148909157,26284.00,Legal Aid Legal Help,,
MOJ,LAA,24/01/18,Civil Representation,LEGAL AID FUND,WOLLEN MICHELMORE,1390564:3000000906390015,31616.86,Legal Aid Civil Representation,,
MOJ,LAA,31/01/18,Civil Representation,LEGAL AID FUND,WITHY KING LLP,1395030:3000001373550024,31882.44,Legal Aid Civil Representation,,
MOJ,LAA,17/01/18,Civil Representation,LEGAL AID FUND,WILSON SOLICITORS LLP,1385647:148794817,144362.38,Legal Aid Civil Representation,,
MOJ,LAA,31/01/18,Legal Help,LEGAL AID FUND,WILSON SOLICITORS LLP,1399093:148890092,107386.00,Legal Aid Legal Help,,
MOJ,LAA,31/01/18,Legal Help,LEGAL AID FUND,WILSON SOLICITORS LLP,1399093:148890011,99000.00,Legal Aid Legal Help,,
MOJ,LAA,31/01/18,Legal Help,LEGAL AID FUND,WILSON SOLICITORS LLP,1397735:148909872,44832.00,Legal Aid Legal Help,,
MOJ,LAA,31/01/18,Legal Help,LEGAL AID FUND,WILSON SOLICITORS LLP,1397742:148909873,34600.00,Legal Aid Legal Help,,
MOJ,LAA,17/01/18,Civil Representation,LEGAL AID FUND,WILSON SOLICITORS LLP,1385647:148795063,-86769.17,Legal Aid Civil Representation,,
MOJ,LAA,12/01/18,Civil Representation,LEGAL AID FUND,WILSON HOULDER & CO,1384417:2000000000005112,41108.79,Legal Aid Civil Representation,,
MOJ,LAA,31/01/18,Higher Crime,LEGAL AID FUND,WILSON DEVONALD GRIFFITHS JOHN,1399129:148886574,45810.17,Legal Aid Higher Crime,,
MOJ,LAA,31/01/18,Lower Crime,LEGAL AID FUND,WILSON DEVONALD GRIFFITHS JOHN,1399129:148909973,45000.00,Legal Aid Lower Crime,,
MOJ,LAA,17/01/18,Civil Representation,LEGAL AID FUND,WILSON BROWNE LLP,1384763:3000001164090016,42564.88,Legal Aid Civil Representation,,
MOJ,LAA,17/01/18,Civil Representation,LEGAL AID FUND,WILSON BROWNE LLP,1384763:3000001164090013RC,-32991.60,Legal Aid Civil Representation,,
MOJ,LAA,31/01/18,Lower Crime,LEGAL AID FUND,WILLIAMSONS SOLICITORS LTD,1397561:148910189,41600.00,Legal Aid Lower Crime,,
MOJ,LAA,24/01/18,Higher Crime,LEGAL AID FUND,WILFORD SMITH & CO LTD,1389924:148865807,60396.89,Legal Aid Higher Crime,,
MOJ,LAA,31/01/18,Higher Crime,LEGAL AID FUND,WHELDON LAW,1397598:148879531,89975.11,Legal Aid Higher Crime,,
MOJ,LAA,03/01/18,Higher Crime,LEGAL AID FUND,WEST MIDLANDS SOLICITORS,1378064:148720602,98778.46,Legal Aid Higher Crime,,
MOJ,LAA,17/01/18,Higher Crime,LEGAL AID FUND,WEST MIDLANDS SOLICITORS,1386531:148783379,89975.11,Legal Aid Higher Crime,,
MOJ,LAA,17/01/18,Higher Crime,LEGAL AID FUND,WEST MIDLANDS SOLICITORS,1386531:148805517,26738.72,Legal Aid Higher Crime,,
MOJ,LAA,31/01/18,Lower Crime,LEGAL AID FUND,WESSEX SOLICITORS CHAMBERS,1397172:148910362,77100.00,Legal Aid Lower Crime,,
MOJ,LAA,03/01/18,Higher Crime,LEGAL AID FUND,WELLS BURCOMBE LLP,1378456:148720635,97454.06,Legal Aid Higher Crime,,
MOJ,LAA,31/01/18,Higher Crime,LEGAL AID FUND,WELLS BURCOMBE LLP,1397868:148878948,89975.11,Legal Aid Higher Crime,,
MOJ,LAA,31/01/18,Lower Crime,LEGAL AID FUND,WELLS BURCOMBE LLP,1397129:148910523,73345.00,Legal Aid Lower Crime,,
MOJ,LAA,31/01/18,Higher Crime,LEGAL AID FUND,WELLS BURCOMBE LLP,1397129:148878362,63168.86,Legal Aid Higher Crime,,
MOJ,LAA,31/01/18,Lower Crime,LEGAL AID FUND,WELLS BURCOMBE LLP,1397868:148911093,39219.00,Legal Aid Lower Crime,,
MOJ,LAA,24/01/18,Higher Crime,LEGAL AID FUND,WATSON WOODHOUSE SOLICITORS LLP,1392164:148835922,64781.33,Legal Aid Higher Crime,,
MOJ,LAA,17/01/18,Higher Crime,LEGAL AID FUND,WATSON WOODHOUSE SOLICITORS LLP,1388776:148816372,32746.35,Legal Aid Higher Crime,,
MOJ,LAA,31/01/18,Lower Crime,LEGAL AID FUND,WATSON WOODHOUSE SOLICITORS LLP,1397228:148910131,29000.00,Legal Aid Lower Crime,,
MOJ,LAA,31/01/18,Lower Crime,LEGAL AID FUND,WATSON WOODHOUSE SOLICITORS LLP,1397226:148910135,26500.00,Legal Aid Lower Crime,,
MOJ,LAA,31/01/18,Lower Crime,LEGAL AID FUND,WANNOPS LLP,1397907:148911169,34943.00,Legal Aid Lower Crime,,
MOJ,LAA,31/01/18,Lower Crime,LEGAL AID FUND,WAINWRIGHT & CUMMINS LLP,1395884:148910105,42000.00,Legal Aid Lower Crime,,
MOJ,LAA,10/01/18,Civil Representation,LEGAL AID FUND,WAINWRIGHT & CUMMINS LLP,1381088:148748550,25299.80,Legal Aid Civil Representation,,
MOJ,LAA,31/01/18,Lower Crime,LEGAL AID FUND,VYMAN SOLICITORS LTD,1395431:148910863,26141.00,Legal Aid Lower Crime,,
MOJ,LAA,31/01/18,Higher Crime,LEGAL AID FUND,VK SOLICITORS (HAYES),1367755:148610475,-89975.11,Legal Aid Higher Crime,,
MOJ,LAA,31/01/18,Legal Help,LEGAL AID FUND,VIRGO SOLICITORS LTD,1396911:148909870,27825.00,Legal Aid Legal Help,,
MOJ,LAA,31/01/18,Higher Crime,LEGAL AID FUND,VIRDEES SOLICITORS LTD,1398254:148872505,84666.12,Legal Aid Higher Crime,,
MOJ,LAA,31/01/18,Civil Representation,LEGAL AID FUND,VICTORIA LAUGHTON,1398937:148882470,35085.23,Legal Aid Civil Representation,,
MOJ,LAA,31/01/18,Lower Crime,LEGAL AID FUND,VICKERS CHISMAN & WISHLADE,1397574:148910130,60200.00,Legal Aid Lower Crime,,
MOJ,LAA,31/01/18,Lower Crime,LEGAL AID FUND,VICKERS & CO,1397185:148910659,25034.00,Legal Aid Lower Crime,,
MOJ,LAA,31/01/18,Lower Crime,LEGAL AID FUND,VHS FLETCHERS,1398773:148909999,72100.00,Legal Aid Lower Crime,,
MOJ,LAA,03/01/18,Higher Crime,LEGAL AID FUND,VEJA & CO LTD,1379439:148709957,46516.33,Legal Aid Higher Crime,,
MOJ,LAA,31/01/18,Lower Crime,LEGAL AID FUND,USMANI KING LTD,1394937:148910528,43896.00,Legal Aid Lower Crime,,
MOJ,LAA,17/01/18,Civil Representation,LEGAL AID FUND,TURPIN & MILLER LLP,1387584:3000001787850022,51310.80,Legal Aid Civil Representation,,
MOJ,LAA,31/01/18,Higher Crime,LEGAL AID FUND,TUCKERS SOLICITORS LLP-ADVOCATE,1398904:148871987,29289.73,Legal Aid Higher Crime,,
MOJ,LAA,31/01/18,Lower Crime,LEGAL AID FUND,TUCKERS SOLICITORS LLP,1397233:148910236,130300.00,Legal Aid Lower Crime,,
MOJ,LAA,17/01/18,Higher Crime,LEGAL AID FUND,TUCKERS SOLICITORS LLP,1388781:148820292,97999.40,Legal Aid Higher Crime,,
MOJ,LAA,31/01/18,Higher Crime,LEGAL AID FUND,TUCKERS SOLICITORS LLP,1397233:148872456,91211.45,Legal Aid Higher Crime,,
MOJ,LAA,31/01/18,Lower Crime,LEGAL AID FUND,TUCKERS SOLICITORS LLP,1397234:148910094,90000.00,Legal Aid Lower Crime,,
MOJ,LAA,10/01/18,Higher Crime,LEGAL AID FUND,TUCKERS SOLICITORS LLP,1380586:148751570,55574.92,Legal Aid Higher Crime,,
MOJ,LAA,03/01/18,Higher Crime,LEGAL AID FUND,TUCKERS SOLICITORS LLP,1379433:148720674,53311.04,Legal Aid Higher Crime,,
MOJ,LAA,31/01/18,Higher Crime,LEGAL AID FUND,TUCKERS SOLICITORS LLP,1397234:148878101,45945.22,Legal Aid Higher Crime,,
MOJ,LAA,03/01/18,Higher Crime,LEGAL AID FUND,TUCKERS SOLICITORS LLP,1379434:148710126,42064.72,Legal Aid Higher Crime,,
MOJ,LAA,31/01/18,Lower Crime,LEGAL AID FUND,TUCKERS SOLICITORS LLP,1397123:148910098,35400.00,Legal Aid Lower Crime,,
MOJ,LAA,31/01/18,Lower Crime,LEGAL AID FUND,TUCKERS SOLICITORS LLP,1398084:148910384,35000.00,Legal Aid Lower Crime,,
MOJ,LAA,31/01/18,Lower Crime,LEGAL AID FUND,TUCKERS SOLICITORS LLP,1394193:148911304,27738.00,Legal Aid Lower Crime,,
MOJ,LAA,17/01/18,Higher Crime,LEGAL AID FUND,TUCKERS SOLICITORS LLP,1388782:148783810,26007.28,Legal Aid Higher Crime,,
MOJ,LAA,17/01/18,Higher Crime,LEGAL AID FUND,TRANTERS SOLICITORS LTD,1385659:148820348,67003.69,Legal Aid Higher Crime,,
MOJ,LAA,31/01/18,Lower Crime,LEGAL AID FUND,TRANTERS SOLICITORS LTD,1399110:148910237,30600.00,Legal Aid Lower Crime,,
MOJ,LAA,31/01/18,Civil Representation,LEGAL AID FUND,TRACY LAKIN,1398652:3000001657090005,37324.80,Legal Aid Civil Representation,,
MOJ,LAA,10/01/18,Higher Crime,LEGAL AID FUND,TOSSWILL & CO,1380545:148751133,67086.75,Legal Aid Higher Crime,,
MOJ,LAA,10/01/18,Civil Representation,LEGAL AID FUND,TIM POTTER,1380951:3000001837260025,40792.63,Legal Aid Civil Representation,,
MOJ,LAA,31/01/18,Higher Crime,LEGAL AID FUND,THOMPSONS,1395480:148911883,33418.49,Legal Aid Higher Crime,,
MOJ,LAA,31/01/18,Legal Help,LEGAL AID FUND,THOMPSON & CO SOLICITORS LTD,1396845:148908979,32600.00,Legal Aid Legal Help,,
MOJ,LAA,31/01/18,Higher Crime,LEGAL AID FUND,THOMAS V W KARK QC,1396217:148875642,57080.00,Legal Aid Higher Crime,,
MOJ,LAA,10/01/18,Higher Crime,LEGAL AID FUND,THOMAS M DANIEL,1382579:148758747,28755.17,Legal Aid Higher Crime,,
MOJ,LAA,31/01/18,Lower Crime,LEGAL AID FUND,THOMAS BOYD WHYTE,1394552:148910603,36261.00,Legal Aid Lower Crime,,
MOJ,LAA,31/01/18,Lower Crime,LEGAL AID FUND,THE JOHNSON PARTNERSHIP,1398327:148909996,190000.00,Legal Aid Lower Crime,,
MOJ,LAA,31/01/18,Lower Crime,LEGAL AID FUND,THE JOHNSON PARTNERSHIP,1398325:148909998,44000.00,Legal Aid Lower Crime,,
MOJ,LAA,31/01/18,Lower Crime,LEGAL AID FUND,THE JOHNSON PARTNERSHIP,1397539:148910367,40600.00,Legal Aid Lower Crime,,
MOJ,LAA,31/01/18,Lower Crime,LEGAL AID FUND,THE JOHNSON PARTNERSHIP,1398326:148909997,32500.00,Legal Aid Lower Crime,,
MOJ,LAA,10/01/18,Lower Crime,LEGAL AID FUND,THE JOHNSON PARTNERSHIP,1383886:148756329,27973.15,Legal Aid Lower Crime,,
MOJ,LAA,31/01/18,Lower Crime,LEGAL AID FUND,THE JOHNSON PARTNERSHIP,1397660:148910383,25000.00,Legal Aid Lower Crime,,
MOJ,LAA,24/01/18,Higher Crime,LEGAL AID FUND,THE CENTRAL LAW PRACTICE,1389390:148849620,35746.72,Legal Aid Higher Crime,,
MOJ,LAA,31/01/18,Lower Crime,LEGAL AID FUND,THE CASTLE PARTNERSHIP,1398715:148910259,25000.00,Legal Aid Lower Crime,,
MOJ,LAA,31/01/18,Legal Help,LEGAL AID FUND,THALIWAL & VEJA SOLICITORS,1395401:148909516,34202.00,Legal Aid Legal Help,,
MOJ,LAA,10/01/18,Lower Crime,LEGAL AID FUND,TAYLOR STREET SOLICITORS LLP,1381180:148756104,60600.00,Legal Aid Lower Crime,,
MOJ,LAA,10/01/18,Lower Crime,LEGAL AID FUND,TAYLOR STREET SOLICITORS LLP,1381205:148756102,51800.00,Legal Aid Lower Crime,,
MOJ,LAA,31/01/18,Lower Crime,LEGAL AID FUND,TAYLOR STREET SOLICITORS LLP,1397622:148910257,32400.00,Legal Aid Lower Crime,,
MOJ,LAA,10/01/18,Lower Crime,LEGAL AID FUND,TAYLOR STREET SOLICITORS LLP,1381204:148756103,27800.00,Legal Aid Lower Crime,,
MOJ,LAA,17/01/18,Higher Crime,LEGAL AID FUND,TAYLOR HALDANE BARLEX LLP,1384927:148820337,82344.20,Legal Aid Higher Crime,,
MOJ,LAA,17/01/18,Higher Crime,LEGAL AID FUND,TAYLOR HALDANE BARLEX LLP,1384927:148804672,57222.60,Legal Aid Higher Crime,,
MOJ,LAA,10/01/18,Higher Crime,LEGAL AID FUND,TAYLOR HALDANE BARLEX LLP,1380538:148752633,28263.71,Legal Aid Higher Crime,,
MOJ,LAA,24/01/18,Higher Crime,LEGAL AID FUND,TATES,1392527:148828280,60878.19,Legal Aid Higher Crime,,
MOJ,LAA,24/01/18,Higher Crime,LEGAL AID FUND,TANYA R E OSSACK,1390771:148865695,33875.74,Legal Aid Higher Crime,,
MOJ,LAA,10/01/18,Civil Representation,LEGAL AID FUND,TALLENTS SOLICITORS,1383608:148749208,28221.41,Legal Aid Civil Representation,,
MOJ,LAA,31/01/18,Higher Crime,LEGAL AID FUND,TALBIR SINGH,1396662:148878067,31973.70,Legal Aid Higher Crime,,
MOJ,LAA,31/01/18,Lower Crime,LEGAL AID FUND,TAIT FARRIER GRAHAM,1397194:148910153,29000.00,Legal Aid Lower Crime,,
MOJ,LAA,17/01/18,Higher Crime,LEGAL AID FUND,TAHMINA & CO,1387128:148790678,95707.01,Legal Aid Higher Crime,,
MOJ,LAA,10/01/18,Legal Help,LEGAL AID FUND,T. A. LAW,1381807:148754827,32563.90,Legal Aid Legal Help,,
MOJ,LAA,24/01/18,Legal Help,LEGAL AID FUND,T. A. LAW,1390881:148869656,28844.40,Legal Aid Legal Help,,
MOJ,LAA,31/01/18,Lower Crime,LEGAL AID FUND,T V EDWARDS LLP,1397269:148910079,68000.00,Legal Aid Lower Crime,,
MOJ,LAA,31/01/18,Legal Help,LEGAL AID FUND,T V EDWARDS LLP,1397269:148908975,64900.00,Legal Aid Legal Help,,
MOJ,LAA,17/01/18,Higher Crime,LEGAL AID FUND,T V EDWARDS LLP,1388432:148820656,31937.86,Legal Aid Higher Crime,,
MOJ,LAA,31/01/18,Civil Representation,LEGAL AID FUND,T V EDWARDS LLP,1397269:3000001247020014,30836.05,Legal Aid Civil Representation,,
MOJ,LAA,31/01/18,Lower Crime,LEGAL AID FUND,T S LAW LTD,1394100:148910081,25000.00,Legal Aid Lower Crime,,
MOJ,LAA,31/01/18,Civil Representation,LEGAL AID FUND,SWITALSKI'S SOLICITORS LTD,1395670:3000001703010005,43293.47,Legal Aid Civil Representation,,
MOJ,LAA,31/01/18,Legal Help,LEGAL AID FUND,SWITALSKI'S SOLICITORS LTD,1397943:148909321,38494.00,Legal Aid Legal Help,,
MOJ,LAA,17/01/18,Higher Crime,LEGAL AID FUND,SWITALSKI'S SOLICITORS LTD,1384779:148797402,32721.59,Legal Aid Higher Crime,,
MOJ,LAA,31/01/18,Civil Representation,LEGAL AID FUND,SWITALSKI'S SOLICITORS LTD,1395670:3000001703010003RC,-42924.00,Legal Aid Civil Representation,,
MOJ,LAA,31/01/18,Lower Crime,LEGAL AID FUND,SWAIN & CO SOLICITORS,1395370:148910268,100000.00,Legal Aid Lower Crime,,
MOJ,LAA,31/01/18,Legal Help,LEGAL AID FUND,SWAIN & CO SOLICITORS,1395371:148909082,25000.00,Legal Aid Legal Help,,
MOJ,LAA,31/01/18,Higher Crime,LEGAL AID FUND,SVS SOLICITORS,1397155:148871888,89975.11,Legal Aid Higher Crime,,
MOJ,LAA,31/01/18,Legal Help,LEGAL AID FUND,SUTOVIC & HARTIGAN,1395055:148908995,34300.00,Legal Aid Legal Help,,
MOJ,LAA,31/01/18,Lower Crime,LEGAL AID FUND,SUSSEX DEFENCE SOLICITORS,1396724:148910264,25000.00,Legal Aid Lower Crime,,
MOJ,LAA,31/01/18,Civil Representation,LEGAL AID FUND,SUSAN LINDSEY,1396654:148919074,37582.05,Legal Aid Civil Representation,,
MOJ,LAA,03/01/18,Higher Crime,LEGAL AID FUND,SUNDIP MURRIA SOLICITORS,1378071:148710091,36262.37,Legal Aid Higher Crime,,
MOJ,LAA,31/01/18,Lower Crime,LEGAL AID FUND,SUNDIP MURRIA SOLICITORS,1395874:148910353,35400.00,Legal Aid Lower Crime,,
MOJ,LAA,17/01/18,Higher Crime,LEGAL AID FUND,SUKHDEV GARCHA,1385235:148783723,37836.24,Legal Aid Higher Crime,,
MOJ,LAA,31/01/18,Higher Crime,LEGAL AID FUND,STUART MILLER SOLICITORS LTD,1397236:148872446,107970.13,Legal Aid Higher Crime,,
MOJ,LAA,17/01/18,Higher Crime,LEGAL AID FUND,STUART MILLER SOLICITORS LTD,1388784:148790575,107574.07,Legal Aid Higher Crime,,
MOJ,LAA,31/01/18,Lower Crime,LEGAL AID FUND,STUART MILLER SOLICITORS LTD,1397236:148910643,46290.00,Legal Aid Lower Crime,,
MOJ,LAA,31/01/18,Higher Crime,LEGAL AID FUND,STOKOE PARTNERSHIP,1397860:148871297,38011.68,Legal Aid Higher Crime,,
MOJ,LAA,31/01/18,Higher Crime,LEGAL AID FUND,STOKOE PARTNERSHIP,1394530:148913188,33907.16,Legal Aid Higher Crime,,
MOJ,LAA,31/01/18,Lower Crime,LEGAL AID FUND,STOCK MORAN & SWALWELL,1396423:148910195,28800.00,Legal Aid Lower Crime,,
MOJ,LAA,17/01/18,Higher Crime,LEGAL AID FUND,STEVENS SOLICITORS-ADVOCATE,1384638:148471404,-31712.50,Legal Aid Higher Crime,,
MOJ,LAA,31/01/18,Lower Crime,LEGAL AID FUND,STEVENS SOLICITORS,1396857:148910325,60000.00,Legal Aid Lower Crime,,
MOJ,LAA,31/01/18,Lower Crime,LEGAL AID FUND,STEVENS SOLICITORS,1396858:148910324,52300.00,Legal Aid Lower Crime,,
MOJ,LAA,31/01/18,Lower Crime,LEGAL AID FUND,STEVENS SOLICITORS,1396855:148910331,25000.00,Legal Aid Lower Crime,,
MOJ,LAA,31/01/18,Lower Crime,LEGAL AID FUND,STEVEN YOUNG & CO INC ROWBIS,1395369:148910948,28043.00,Legal Aid Lower Crime,,
MOJ,LAA,24/01/18,Higher Crime,LEGAL AID FUND,STERNBERG REED SOLICITORS,1390159:148835861,95707.01,Legal Aid Higher Crime,,
MOJ,LAA,31/01/18,Higher Crime,LEGAL AID FUND,STERNBERG REED SOLICITORS,1396397:148885861,89975.11,Legal Aid Higher Crime,,
MOJ,LAA,17/01/18,Higher Crime,LEGAL AID FUND,STERNBERG REED SOLICITORS,1386516:148821057,69862.46,Legal Aid Higher Crime,,
MOJ,LAA,24/01/18,Civil Representation,LEGAL AID FUND,STERNBERG REED SOLICITORS,1390890:148666616,40434.76,Legal Aid Civil Representation,,
MOJ,LAA,31/01/18,Higher Crime,LEGAL AID FUND,STERNBERG REED SOLICITORS,1396397:148872509,36573.33,Legal Aid Higher Crime,,
MOJ,LAA,31/01/18,Lower Crime,LEGAL AID FUND,STERNBERG REED SOLICITORS,1396397:148910080,34900.00,Legal Aid Lower Crime,,
MOJ,LAA,24/01/18,Higher Crime,LEGAL AID FUND,STEPHENSONS SOLICITORS LLP,1391799:148827541,44960.52,Legal Aid Higher Crime,,
MOJ,LAA,24/01/18,Legal Help,LEGAL AID FUND,STEPHENSONS SOLICITORS LLP,1391800:148869650,43698.48,Legal Aid Legal Help,,
MOJ,LAA,31/01/18,Higher Crime,LEGAL AID FUND,STEPHENSONS SOLICITORS LLP,1396807:148911956,37914.74,Legal Aid Higher Crime,,
MOJ,LAA,24/01/18,Civil Representation,LEGAL AID FUND,STEPHENSONS SOLICITORS LLP,1391799:148837915,25926.07,Legal Aid Civil Representation,,
MOJ,LAA,17/01/18,Civil Representation,LEGAL AID FUND,STEPHENS & SCOWN LLP,1387225:3000001259280014,25857.12,Legal Aid Civil Representation,,
MOJ,LAA,11/01/18,Civil Representation,LEGAL AID FUND,STEPHEN REEDER,1384389:148389825,-27605.44,Legal Aid Civil Representation,,
MOJ,LAA,24/01/18,Civil Representation,LEGAL AID FUND,STEPHEN P AINSLEY,1390119:3000001327160041,38961.00,Legal Aid Civil Representation,,
MOJ,LAA,24/01/18,Higher Crime,LEGAL AID FUND,STEPHEN MOORE & CO-ADVOCATE,1392957:148835328,34101.22,Legal Aid Higher Crime,,
MOJ,LAA,10/01/18,Higher Crime,LEGAL AID FUND,STEPHEN MOORE & CO,1381092:148752278,78374.23,Legal Aid Higher Crime,,
MOJ,LAA,31/01/18,Higher Crime,LEGAL AID FUND,STEPHEN FIDLER & CO,1394512:148912091,37296.80,Legal Aid Higher Crime,,
MOJ,LAA,31/01/18,Civil Representation,LEGAL AID FUND,STEPHEN CHIPPECK,1397027:148816276,40917.60,Legal Aid Civil Representation,,
MOJ,LAA,31/01/18,Civil Representation,LEGAL AID FUND,STEPHEN CHIPPECK,1397027:3000002284310007,33324.22,Legal Aid Civil Representation,,
MOJ,LAA,17/01/18,Higher Crime,LEGAL AID FUND,STEPHEN BURDON SOLICITORS,1385943:148820207,89975.11,Legal Aid Higher Crime,,
MOJ,LAA,31/01/18,Lower Crime,LEGAL AID FUND,STEPHEN BURDON SOLICITORS,1394483:148910000,39100.00,Legal Aid Lower Crime,,
MOJ,LAA,31/01/18,Civil Representation,LEGAL AID FUND,STEEL & SHAMASH,1395478:3000001615890009,26181.28,Legal Aid Civil Representation,,
MOJ,LAA,31/01/18,Lower Crime,LEGAL AID FUND,STEEL & SHAMASH,1395478:148910103,25100.00,Legal Aid Lower Crime,,
MOJ,LAA,10/01/18,Higher Crime,LEGAL AID FUND,STAN REIZ,1381722:148780421,72199.99,Legal Aid Higher Crime,,
MOJ,LAA,31/01/18,Legal Help,LEGAL AID FUND,STAFFORDSHIRE NORTH & STOKE-ON-TRENT-CAB,1396384:148909596,25832.00,Legal Aid Legal Help,,
MOJ,LAA,24/01/18,Higher Crime,LEGAL AID FUND,ST JAMES SOLICITORS,1389667:148843251,34387.90,Legal Aid Higher Crime,,
MOJ,LAA,31/01/18,Legal Help,LEGAL AID FUND,SOUTHERNS SOLICITORS,1397244:148909460,27849.00,Legal Aid Legal Help,,
MOJ,LAA,10/01/18,Higher Crime,LEGAL AID FUND,SONN MACMILLAN WALKER-ADVOCATE,1382259:148758223,38095.85,Legal Aid Higher Crime,,
MOJ,LAA,31/01/18,Higher Crime,LEGAL AID FUND,SONN MACMILLAN WALKER LTD,1394594:148871354,87287.99,Legal Aid Higher Crime,,
MOJ,LAA,10/01/18,Higher Crime,LEGAL AID FUND,SONN MACMILLAN WALKER LTD,1381877:148738499,67069.98,Legal Aid Higher Crime,,
MOJ,LAA,31/01/18,Lower Crime,LEGAL AID FUND,SONN MACMILLAN WALKER LTD,1394594:148910037,48700.00,Legal Aid Lower Crime,,
MOJ,LAA,17/01/18,Higher Crime,LEGAL AID FUND,SONN MACMILLAN WALKER LTD,1386875:148783460,29884.85,Legal Aid Higher Crime,,
MOJ,LAA,31/01/18,Lower Crime,LEGAL AID FUND,SMITH PARTNERSHIP,1395457:148910005,27600.00,Legal Aid Lower Crime,,
MOJ,LAA,17/01/18,Higher Crime,LEGAL AID FUND,SJ LAW,1385627:148798140,44960.52,Legal Aid Higher Crime,,
MOJ,LAA,31/01/18,Higher Crime,LEGAL AID FUND,SJ LAW,1394103:148894094,40547.77,Legal Aid Higher Crime,,
MOJ,LAA,31/01/18,Higher Crime,LEGAL AID FUND,SIOBHAN GREY QC,1398693:148879001,48616.55,Legal Aid Higher Crime,,
MOJ,LAA,11/01/18,Civil Representation,LEGAL AID FUND,SIMPSON MILLAR SOLICITORS LLP,1384394:2000000000005074,101172.87,Legal Aid Civil Representation,,
MOJ,LAA,31/01/18,Civil Representation,LEGAL AID FUND,SIMPSON MILLAR SOLICITORS LLP,1398010:148867889,57291.75,Legal Aid Civil Representation,,
MOJ,LAA,24/01/18,Legal Help,LEGAL AID FUND,SIMPSON MILLAR SOLICITORS LLP,1391332:148869645,35391.93,Legal Aid Legal Help,,
MOJ,LAA,31/01/18,Higher Crime,LEGAL AID FUND,SIMPSON HEALD PEARSON,1399108:148872450,77727.74,Legal Aid Higher Crime,,
MOJ,LAA,31/01/18,Higher Crime,LEGAL AID FUND,SIMON RUSSELL-FLINT QC,1395294:148905297,161040.00,Legal Aid Higher Crime,,
MOJ,LAA,31/01/18,Higher Crime,LEGAL AID FUND,SIMON RUSSELL-FLINT QC,1395294:148872054,33737.62,Legal Aid Higher Crime,,
MOJ,LAA,10/01/18,Higher Crime,LEGAL AID FUND,SIMON J REEVELL,1382961:148738730,27413.90,Legal Aid Higher Crime,,
MOJ,LAA,24/01/18,Higher Crime,LEGAL AID FUND,SIMON J GURNEY,1389790:148838776,48439.99,Legal Aid Higher Crime,,
MOJ,LAA,24/01/18,Higher Crime,LEGAL AID FUND,SIMON J CONNOLLY,1390858:148834867,35024.80,Legal Aid Higher Crime,,
MOJ,LAA,24/01/18,Higher Crime,LEGAL AID FUND,SIMON CSOKA,1393057:148838943,96000.00,Legal Aid Higher Crime,,
MOJ,LAA,10/01/18,Higher Crime,LEGAL AID FUND,SIMON CSOKA,1383184:148751669,53090.02,Legal Aid Higher Crime,,
MOJ,LAA,24/01/18,Civil Representation,LEGAL AID FUND,SHIVA E ANCLIFFE,1389800:3000001821040017,27465.56,Legal Aid Civil Representation,,
MOJ,LAA,31/01/18,Lower Crime,LEGAL AID FUND,SHEPPARDS SOLICITORS LTD,1394928:148910308,30600.00,Legal Aid Lower Crime,,
MOJ,LAA,24/01/18,Legal Help,LEGAL AID FUND,SHELTER.,1390885:148869640,33803.52,Legal Aid Legal Help,,
MOJ,LAA,31/01/18,Lower Crime,LEGAL AID FUND,SHELLEY & CO,1399097:148910564,28119.00,Legal Aid Lower Crime,,
MOJ,LAA,31/01/18,Higher Crime,LEGAL AID FUND,SHAW GRAHAM KERSH,1394502:148872686,94013.49,Legal Aid Higher Crime,,
MOJ,LAA,03/01/18,Higher Crime,LEGAL AID FUND,SHANAHANS SOLICITORS & ADVOCATES,1378041:148709750,49729.07,Legal Aid Higher Crime,,
MOJ,LAA,24/01/18,Higher Crime,LEGAL AID FUND,SHAIKH AYUB SOLICITORS,1390867:148835256,63779.16,Legal Aid Higher Crime,,
MOJ,LAA,10/01/18,Higher Crime,LEGAL AID FUND,SHAHID ALI & CO SOLICITORS,1380859:148759116,89975.11,Legal Aid Higher Crime,,
MOJ,LAA,17/01/18,Higher Crime,LEGAL AID FUND,SHAFI SOLICITORS LLP,1385426:148798127,50451.32,Legal Aid Higher Crime,,
MOJ,LAA,31/01/18,Lower Crime,LEGAL AID FUND,SCOTT-MONCRIEFF & ASSOCIATES LLP,1394584:148910641,66430.00,Legal Aid Lower Crime,,
MOJ,LAA,24/01/18,Higher Crime,LEGAL AID FUND,SAUNDERS SOLICITORS LTD,1390628:148828157,65378.40,Legal Aid Higher Crime,,
MOJ,LAA,31/01/18,Higher Crime,LEGAL AID FUND,SAUNDERS SOLICITORS LTD,1394571:148912586,49132.58,Legal Aid Higher Crime,,
MOJ,LAA,10/01/18,Higher Crime,LEGAL AID FUND,SAUNDERS SOLICITORS LTD,1381932:148751978,29355.97,Legal Aid Higher Crime,,
MOJ,LAA,17/01/18,Civil Representation,LEGAL AID FUND,SARAH M MORGAN QC,1385604:3000001789260015,46656.00,Legal Aid Civil Representation,,
MOJ,LAA,24/01/18,Civil Representation,LEGAL AID FUND,SARAH L FEARON,1390800:3000002306020013,31090.88,Legal Aid Civil Representation,,
MOJ,LAA,31/01/18,Civil Representation,LEGAL AID FUND,SARAH EARLEY,1399069:3000002482760008,30813.06,Legal Aid Civil Representation,,
MOJ,LAA,31/01/18,Lower Crime,LEGAL AID FUND,SANSBURY DOUGLAS,1397541:148910365,50000.00,Legal Aid Lower Crime,,
MOJ,LAA,24/01/18,Higher Crime,LEGAL AID FUND,SANJEEV M SHARMA,1391231:148865061,27597.10,Legal Aid Higher Crime,,
MOJ,LAA,31/01/18,Higher Crime,LEGAL AID FUND,SAMUEL I G TREFGARNE,1398111:148876779,63240.00,Legal Aid Higher Crime,,
MOJ,LAA,10/01/18,Civil Representation,LEGAL AID FUND,SAMANTHA L KING,1381556:148741378,92728.80,Legal Aid Civil Representation,,
MOJ,LAA,10/01/18,Civil Representation,LEGAL AID FUND,SAMANTHA L KING,1381556:148748797,-29128.80,Legal Aid Civil Representation,,
MOJ,LAA,10/01/18,Civil Representation,LEGAL AID FUND,SAMANTHA L KING,1381556:148748795,-36000.00,Legal Aid Civil Representation,,
MOJ,LAA,24/01/18,Civil Representation,LEGAL AID FUND,SALLY COLLINS,1390844:3000001589640005,25090.56,Legal Aid Civil Representation,,
MOJ,LAA,24/01/18,Higher Crime,LEGAL AID FUND,SALHAN & CO LTD,1389922:148827027,57627.87,Legal Aid Higher Crime,,
MOJ,LAA,24/01/18,Civil Representation,LEGAL AID FUND,SAIFUL ISLAM,1391920:148846104,27510.95,Legal Aid Civil Representation,,
MOJ,LAA,31/01/18,Higher Crime,LEGAL AID FUND,SAHOTA & SAHOTA SOLICITORS,1398821:148872478,107574.07,Legal Aid Higher Crime,,
MOJ,LAA,31/01/18,Higher Crime,LEGAL AID FUND,S SATHA & CO LTD,1397599:148912165,37296.80,Legal Aid Higher Crime,,
MOJ,LAA,31/01/18,Lower Crime,LEGAL AID FUND,S A LAW CHAMBERS SOLICITORS,1394932:148910040,39000.00,Legal Aid Lower Crime,,
MOJ,LAA,24/01/18,Civil Representation,LEGAL AID FUND,RUSSELL-COOKE LLP,1392092:3000002351860002,27168.81,Legal Aid Civil Representation,,
MOJ,LAA,31/01/18,Lower Crime,LEGAL AID FUND,ROY FOREMAN & CO SOLICITORS,1399083:148910184,29000.00,Legal Aid Lower Crime,,
MOJ,LAA,24/01/18,Higher Crime,LEGAL AID FUND,ROXANNE T MORRELL,1390464:148846363,48440.00,Legal Aid Higher Crime,,
MOJ,LAA,31/01/18,Lower Crime,LEGAL AID FUND,ROWE SPARKES SOLICITORS LTD,1396388:148910270,59400.00,Legal Aid Lower Crime,,
MOJ,LAA,31/01/18,Higher Crime,LEGAL AID FUND,ROSS SOLICITORS LTD,1395538:148871841,42474.71,Legal Aid Higher Crime,,
MOJ,LAA,31/01/18,Higher Crime,LEGAL AID FUND,ROEBUCKS SOLICITORS,1396820:148912193,129088.88,Legal Aid Higher Crime,,
MOJ,LAA,10/01/18,Higher Crime,LEGAL AID FUND,ROEBUCKS SOLICITORS,1383043:148744586,51596.00,Legal Aid Higher Crime,,
MOJ,LAA,31/01/18,Lower Crime,LEGAL AID FUND,RODNEY WARREN & CO LTD,1395003:148910249,37100.00,Legal Aid Lower Crime,,
MOJ,LAA,17/01/18,Higher Crime,LEGAL AID FUND,ROBERT M O'SULLIVAN,1385863:148798105,32335.84,Legal Aid Higher Crime,,
MOJ,LAA,17/01/18,Higher Crime,LEGAL AID FUND,ROBERT LIZAR,1388413:148805099,81921.88,Legal Aid Higher Crime,,
MOJ,LAA,31/01/18,Lower Crime,LEGAL AID FUND,ROBERT LIZAR,1396802:148910240,30000.00,Legal Aid Lower Crime,,
MOJ,LAA,31/01/18,Higher Crime,LEGAL AID FUND,ROBERT LAYTON & CO,1394137:148912013,57634.61,Legal Aid Higher Crime,,
MOJ,LAA,31/01/18,Lower Crime,LEGAL AID FUND,ROACH PITTIS,1394994:148910273,26400.00,Legal Aid Lower Crime,,
MOJ,LAA,31/01/18,Lower Crime,LEGAL AID FUND,RMNJ SOLICITORS ***,1398705:148910680,50563.00,Legal Aid Lower Crime,,
MOJ,LAA,31/01/18,Higher Crime,LEGAL AID FUND,RILEY HAYES & CO,1399104:148871969,103653.11,Legal Aid Higher Crime,,
MOJ,LAA,31/01/18,Higher Crime,LEGAL AID FUND,RILEY HAYES & CO,1399104:148871392,49010.64,Legal Aid Higher Crime,,
MOJ,LAA,31/01/18,Lower Crime,LEGAL AID FUND,RILEY HAYES & CO,1399104:148910359,34900.00,Legal Aid Lower Crime,,
MOJ,LAA,24/01/18,Civil Representation,LEGAL AID FUND,RIDLEY & HALL LEGAL LTD,1389965:3000000476130039,51638.40,Legal Aid Civil Representation,,
MOJ,LAA,24/01/18,Higher Crime,LEGAL AID FUND,RICHARD M BARRACLOUGH QC,1391975:148865287,57334.73,Legal Aid Higher Crime,,
MOJ,LAA,31/01/18,Higher Crime,LEGAL AID FUND,RICHARD M BARRACLOUGH QC,1398949:148878075,28861.06,Legal Aid Higher Crime,,
MOJ,LAA,17/01/18,Civil Representation,LEGAL AID FUND,RICHARD M A HADLEY,1386164:3000002373850009,27902.04,Legal Aid Civil Representation,,
MOJ,LAA,17/01/18,Higher Crime,LEGAL AID FUND,RICHARD HUTCHINGS,1385000:148820272,26727.17,Legal Aid Higher Crime,,
MOJ,LAA,31/01/18,Lower Crime,LEGAL AID FUND,RICHARD HASWELL SOLICITORS LTD,1397260:148910714,33370.00,Legal Aid Lower Crime,,
MOJ,LAA,24/01/18,Higher Crime,LEGAL AID FUND,RICHARD GRIFFITHS & CO,1392901:148843093,29857.76,Legal Aid Higher Crime,,
MOJ,LAA,22/01/18,Civil Representation,LEGAL AID FUND,RHYS M JONES,1389008:3000001200740012RC,-26524.80,Legal Aid Civil Representation,,
MOJ,LAA,31/01/18,Lower Crime,LEGAL AID FUND,RENSHAW DERRICK & CO,1395042:148910920,32473.00,Legal Aid Lower Crime,,
MOJ,LAA,17/01/18,Civil Representation,LEGAL AID FUND,REMBERT DE MELLO,1386106:148794498,30083.69,Legal Aid Civil Representation,,
MOJ,LAA,31/01/18,Higher Crime,LEGAL AID FUND,REEVES  & CO SOLICITORS,1397160:148911886,100013.36,Legal Aid Higher Crime,,
MOJ,LAA,31/01/18,Lower Crime,LEGAL AID FUND,REEVES  & CO SOLICITORS,1397160:148910873,31933.00,Legal Aid Lower Crime,,
MOJ,LAA,31/01/18,Higher Crime,LEGAL AID FUND,REEVES  & CO SOLICITORS,1397160:148719896,-42311.58,Legal Aid Higher Crime,,
MOJ,LAA,31/01/18,Lower Crime,LEGAL AID FUND,REEDS SOLICITORS LTD,1395102:148911499,53658.00,Legal Aid Lower Crime,,
MOJ,LAA,31/01/18,Lower Crime,LEGAL AID FUND,REEDS SOLICITORS LTD,1398714:148910910,51634.00,Legal Aid Lower Crime,,
MOJ,LAA,31/01/18,Lower Crime,LEGAL AID FUND,REEDS SOLICITORS LTD,1395099:148911502,36156.00,Legal Aid Lower Crime,,
MOJ,LAA,31/01/18,Lower Crime,LEGAL AID FUND,REEDS SOLICITORS LTD,1394767:148911187,33285.00,Legal Aid Lower Crime,,
MOJ,LAA,17/01/18,Higher Crime,LEGAL AID FUND,REEDS SOLICITORS LTD,1388544:148782543,29664.55,Legal Aid Higher Crime,,
MOJ,LAA,24/01/18,Higher Crime,LEGAL AID FUND,REEDS SOLICITORS LTD,1391491:148846135,29088.55,Legal Aid Higher Crime,,
MOJ,LAA,31/01/18,Civil Representation,LEGAL AID FUND,REEDS SOLICITORS LTD,1397364:3000002332680015,28931.40,Legal Aid Civil Representation,,
MOJ,LAA,31/01/18,Lower Crime,LEGAL AID FUND,REECE THOMAS WATSON LTD,1398811:148911267,25816.00,Legal Aid Lower Crime,,
MOJ,LAA,24/01/18,Higher Crime,LEGAL AID FUND,REBECCA UPTON,1392080:148849886,31278.48,Legal Aid Higher Crime,,
MOJ,LAA,31/01/18,Civil Representation,LEGAL AID FUND,REBECCA FRANKLIN,1398930:148883357,29073.60,Legal Aid Civil Representation,,
MOJ,LAA,31/01/18,Civil Representation,LEGAL AID FUND,REBECCA FRANKLIN,1398930:148883360,-29778.16,Legal Aid Civil Representation,,
MOJ,LAA,10/01/18,Higher Crime,LEGAL AID FUND,RANJEET DULAY,1380981:148744432,27474.79,Legal Aid Higher Crime,,
MOJ,LAA,31/01/18,Civil Representation,LEGAL AID FUND,RAMSDENS SOLICITORS LLP,1394281:3000001869040005,26179.20,Legal Aid Civil Representation,,
MOJ,LAA,17/01/18,Higher Crime,LEGAL AID FUND,RAHMAN RAVELLI SOLICITORS LTD,1385634:148820581,40152.41,Legal Aid Higher Crime,,
MOJ,LAA,31/01/18,Higher Crime,LEGAL AID FUND,RACHNA GOKANI,1395244:148875643,28680.00,Legal Aid Higher Crime,,
MOJ,LAA,24/01/18,Higher Crime,LEGAL AID FUND,R W GEORGE THRELFALL,1389489:148869239,28680.00,Legal Aid Higher Crime,,
MOJ,LAA,31/01/18,Higher Crime,LEGAL AID FUND,QUINN MELVILLE,1394895:148879031,96267.60,Legal Aid Higher Crime,,
MOJ,LAA,31/01/18,Higher Crime,LEGAL AID FUND,QUINN MELVILLE,1394895:148872541,38063.30,Legal Aid Higher Crime,,
MOJ,LAA,31/01/18,Civil Representation,LEGAL AID FUND,QUALITY SOLICITORS LOCKINGS,1397993:3000002313800015,34547.34,Legal Aid Civil Representation,,
MOJ,LAA,31/01/18,Lower Crime,LEGAL AID FUND,PURE LAW CRIMINAL DEFENCE,1395155:148911323,27515.00,Legal Aid Lower Crime,,
MOJ,LAA,31/01/18,Lower Crime,LEGAL AID FUND,PURCELL PARKER LTD,1399103:148910337,79300.00,Legal Aid Lower Crime,,
MOJ,LAA,31/01/18,Higher Crime,LEGAL AID FUND,PRIME SOLICITORS,1397476:148872497,107574.07,Legal Aid Higher Crime,,
MOJ,LAA,24/01/18,Higher Crime,LEGAL AID FUND,POWELL SPENCER AND PARTNERS,1391385:148835378,56201.03,Legal Aid Higher Crime,,
MOJ,LAA,31/01/18,Lower Crime,LEGAL AID FUND,POWELL SPENCER AND PARTNERS,1395475:148910046,36500.00,Legal Aid Lower Crime,,
MOJ,LAA,24/01/18,Higher Crime,LEGAL AID FUND,POWELL SPENCER AND PARTNERS,1391385:148827468,27073.19,Legal Aid Higher Crime,,
MOJ,LAA,10/01/18,Higher Crime,LEGAL AID FUND,POTTER DERBY LTD,1382779:148752382,80382.08,Legal Aid Higher Crime,,
MOJ,LAA,10/01/18,Higher Crime,LEGAL AID FUND,POTTER DERBY LTD,1382779:148744304,49244.44,Legal Aid Higher Crime,,
MOJ,LAA,31/01/18,Civil Representation,LEGAL AID FUND,PORTER DODSON,1395028:148890683,82713.02,Legal Aid Civil Representation,,
MOJ,LAA,10/01/18,Civil Representation,LEGAL AID FUND,PORTER DODSON,1382144:148742210,32708.37,Legal Aid Civil Representation,,
MOJ,LAA,31/01/18,Lower Crime,LEGAL AID FUND,POOLE ALCOCK LLP,1398718:148910814,25139.00,Legal Aid Lower Crime,,
MOJ,LAA,31/01/18,Higher Crime,LEGAL AID FUND,PHILLIPS OSBORNE SOLICITORS,1395868:148877960,59666.46,Legal Aid Higher Crime,,
MOJ,LAA,11/01/18,Civil Representation,LEGAL AID FUND,PHILIPPOU & CO,1384400:2000000000005081,224956.65,Legal Aid Civil Representation,,
MOJ,LAA,31/01/18,Higher Crime,LEGAL AID FUND,PHILIPPA M MCATASNEY QC,1396189:148913438,37591.84,Legal Aid Higher Crime,,
MOJ,LAA,31/01/18,Higher Crime,LEGAL AID FUND,PHILIP HANBY LTD T/A ANDREW JAY & CO,1398332:148878862,29809.31,Legal Aid Higher Crime,,
MOJ,LAA,24/01/18,Civil Representation,LEGAL AID FUND,PHILCOX GRAY & CO,1390290:3000001486730014,25694.58,Legal Aid Civil Representation,,
MOJ,LAA,31/01/18,Higher Crime,LEGAL AID FUND,PETHERBRIDGE BASSRA SOLICITORS LTD,1396096:148885721,81835.74,Legal Aid Higher Crime,,
MOJ,LAA,31/01/18,Higher Crime,LEGAL AID FUND,PETHERBRIDGE BASSRA SOLICITORS LTD,1395394:148886930,31513.44,Legal Aid Higher Crime,,
MOJ,LAA,31/01/18,Lower Crime,LEGAL AID FUND,PETHERBRIDGE BASSRA SOLICITORS LTD,1395394:148910760,27752.00,Legal Aid Lower Crime,,
MOJ,LAA,31/01/18,Higher Crime,LEGAL AID FUND,PETER GREENE & CO,1397163:148894480,25983.25,Legal Aid Higher Crime,,
MOJ,LAA,31/01/18,Legal Help,LEGAL AID FUND,PETER EDWARDS LAW LTD,1394461:148908966,59200.00,Legal Aid Legal Help,,
MOJ,LAA,31/01/18,Civil Representation,LEGAL AID FUND,PEPPERELLS SOLICITORS,1397542:3000001378860026,35529.05,Legal Aid Civil Representation,,
MOJ,LAA,31/01/18,Lower Crime,LEGAL AID FUND,PENFOLD & MCPHERSON LTD,1396475:148910907,25315.00,Legal Aid Lower Crime,,
MOJ,LAA,31/01/18,Higher Crime,LEGAL AID FUND,PAUL S BOGAN,1395807:148876626,112440.00,Legal Aid Higher Crime,,
MOJ,LAA,17/01/18,Higher Crime,LEGAL AID FUND,PAUL R HYNES QC,1388267:148790235,2107572.48,Legal Aid Higher Crime,,
MOJ,LAA,17/01/18,Higher Crime,LEGAL AID FUND,PAUL R HYNES QC,1388267:148790231,41342.02,Legal Aid Higher Crime,,
MOJ,LAA,17/01/18,Higher Crime,LEGAL AID FUND,PAUL R HYNES QC,1388267:148790251,-2107104.48,Legal Aid Higher Crime,,
MOJ,LAA,24/01/18,Higher Crime,LEGAL AID FUND,PAUL PRIOR,1389546:148865741,28476.24,Legal Aid Higher Crime,,
MOJ,LAA,31/01/18,Higher Crime,LEGAL AID FUND,PAUL MARTIN & CO,1394963:148872545,100197.59,Legal Aid Higher Crime,,
MOJ,LAA,24/01/18,Civil Representation,LEGAL AID FUND,PAUL M STOREY QC,1391607:3000002284310006,57165.94,Legal Aid Civil Representation,,
MOJ,LAA,24/01/18,Civil Representation,LEGAL AID FUND,PAUL M STOREY QC,1391607:3000001772330011,34125.30,Legal Aid Civil Representation,,
MOJ,LAA,31/01/18,Civil Representation,LEGAL AID FUND,PAUL CROWLEY & CO SOLICITORS LTD,1394470:148860643,45844.65,Legal Aid Civil Representation,,
MOJ,LAA,31/01/18,Civil Representation,LEGAL AID FUND,PAUL A LOPEZ,1398661:148883283,32629.36,Legal Aid Civil Representation,,
MOJ,LAA,31/01/18,Civil Representation,LEGAL AID FUND,PAUL A LOPEZ,1398661:148883284,-30547.32,Legal Aid Civil Representation,,
MOJ,LAA,31/01/18,Civil Representation,LEGAL AID FUND,PAUL A A GILLOTT,1393996:3000002212560004,46958.40,Legal Aid Civil Representation,,
MOJ,LAA,24/01/18,Higher Crime,LEGAL AID FUND,PATRICK T MAGGS,1391961:148849458,26364.48,Legal Aid Higher Crime,,
MOJ,LAA,31/01/18,Civil Representation,LEGAL AID FUND,PATRICK LAWRENCE PARTNERSHIP LLP,1394079:148816204,43839.64,Legal Aid Civil Representation,,
MOJ,LAA,31/01/18,Higher Crime,LEGAL AID FUND,PATRICK C UPWARD QC,1398910:148871670,70480.68,Legal Aid Higher Crime,,
MOJ,LAA,31/01/18,Legal Help,LEGAL AID FUND,PARKER RHODES HICKMOTTS,1397361:148909854,34629.00,Legal Aid Legal Help,,
MOJ,LAA,24/01/18,Higher Crime,LEGAL AID FUND,PARKER BIRD WHITELEY,1390220:148841974,54156.89,Legal Aid Higher Crime,,
MOJ,LAA,31/01/18,Legal Help,LEGAL AID FUND,PARAGON LAW LTD,1395891:148909071,45000.00,Legal Aid Legal Help,,
MOJ,LAA,24/01/18,Civil Representation,LEGAL AID FUND,PAMELA SCRIVEN QC,1389449:3000001408390048,44658.42,Legal Aid Civil Representation,,
MOJ,LAA,31/01/18,Lower Crime,LEGAL AID FUND,OWEN NASH & CO,1395942:148910345,40000.00,Legal Aid Lower Crime,,
MOJ,LAA,31/01/18,Legal Help,LEGAL AID FUND,OTTEN PENNA LTD,1394090:148909018,29000.00,Legal Aid Legal Help,,
MOJ,LAA,17/01/18,Higher Crime,LEGAL AID FUND,OSMAN H OSMAN,1388353:148804936,34739.76,Legal Aid Higher Crime,,
MOJ,LAA,31/01/18,Lower Crime,LEGAL AID FUND,OSLERS SOLICITORS,1397122:148910550,35804.00,Legal Aid Lower Crime,,
MOJ,LAA,10/01/18,Civil Representation,LEGAL AID FUND,OSBORNE & CO SOLICITORS,1380463:3000000356940018,25952.49,Legal Aid Civil Representation,,
MOJ,LAA,31/01/18,Lower Crime,LEGAL AID FUND,O'NEILL WRIGHT & NASH,1397845:148911030,40380.00,Legal Aid Lower Crime,,
MOJ,LAA,31/01/18,Lower Crime,LEGAL AID FUND,ONE LEGAL SERVICES LTD,1394697:148911430,36453.00,Legal Aid Lower Crime,,
MOJ,LAA,17/01/18,Higher Crime,LEGAL AID FUND,OLLIERS SOLICITORS LTD,1385955:148790468,25287.12,Legal Aid Higher Crime,,
MOJ,LAA,24/01/18,Higher Crime,LEGAL AID FUND,OLIVER WEETCH,1392808:148864956,30233.35,Legal Aid Higher Crime,,
MOJ,LAA,24/01/18,Higher Crime,LEGAL AID FUND,OLD BAILEY SOLICITORS LTD,1390921:148849776,84230.13,Legal Aid Higher Crime,,
MOJ,LAA,31/01/18,Lower Crime,LEGAL AID FUND,OLD BAILEY SOLICITORS LTD,1397938:148911082,35834.00,Legal Aid Lower Crime,,
MOJ,LAA,10/01/18,Higher Crime,LEGAL AID FUND,O'KEEFFE SOLICITORS,1381960:148776214,89975.11,Legal Aid Higher Crime,,
MOJ,LAA,24/01/18,Higher Crime,LEGAL AID FUND,O'KEEFFE SOLICITORS,1390634:148849594,37503.30,Legal Aid Higher Crime,,
MOJ,LAA,31/01/18,Higher Crime,LEGAL AID FUND,O'GARRA'S SOLICITORS,1394503:148878847,42621.57,Legal Aid Higher Crime,,
MOJ,LAA,17/01/18,Higher Crime,LEGAL AID FUND,OBW PERERA LTD,1386494:148791123,89975.11,Legal Aid Higher Crime,,
MOJ,LAA,31/01/18,Lower Crime,LEGAL AID FUND,OBW PERERA LTD,1395907:148910028,29000.00,Legal Aid Lower Crime,,
MOJ,LAA,31/01/18,Lower Crime,LEGAL AID FUND,NORRIE WAITE & SLATER,1397964:148910167,38000.00,Legal Aid Lower Crime,,
MOJ,LAA,31/01/18,Lower Crime,LEGAL AID FUND,NOBLE SOLICITORS,1397908:148911043,40527.00,Legal Aid Lower Crime,,
MOJ,LAA,31/01/18,Lower Crime,LEGAL AID FUND,NOBLE SOLICITORS,1394658:148911393,29421.00,Legal Aid Lower Crime,,
MOJ,LAA,17/01/18,Civil Representation,LEGAL AID FUND,NKUMBE EKANEY QC,1385589:3000001373550023,61344.00,Legal Aid Civil Representation,,
MOJ,LAA,17/01/18,Lower Crime,LEGAL AID FUND,NIGEL WELLER & CO,1385045:148816221,54760.41,Legal Aid Lower Crime,,
MOJ,LAA,31/01/18,Lower Crime,LEGAL AID FUND,NIGEL WELLER & CO,1398356:148919699,35203.08,Legal Aid Lower Crime,,
MOJ,LAA,24/01/18,Higher Crime,LEGAL AID FUND,NICHOLAS LOBBENBERG,1391959:148842617,56001.66,Legal Aid Higher Crime,,
MOJ,LAA,31/01/18,Lower Crime,LEGAL AID FUND,NELSON GUEST & PARTNERS,1394597:148910600,25892.00,Legal Aid Lower Crime,,
MOJ,LAA,17/01/18,Civil Representation,LEGAL AID FUND,NEIL BULLOCK,1385517:3000000924970023,25428.60,Legal Aid Civil Representation,,
MOJ,LAA,24/01/18,Higher Crime,LEGAL AID FUND,NEENA CRINNION,1390095:148850020,33895.30,Legal Aid Higher Crime,,
MOJ,LAA,31/01/18,Higher Crime,LEGAL AID FUND,NADINE RADFORD QC,1398934:148878387,67021.49,Legal Aid Higher Crime,,
MOJ,LAA,31/01/18,Higher Crime,LEGAL AID FUND,MURRAYS SOLICITORS LTD,1396368:148912078,27353.04,Legal Aid Higher Crime,,
MOJ,LAA,24/01/18,Higher Crime,LEGAL AID FUND,MURRAYS PARTNERSHIP SOLICITORS,1392106:148827684,71210.66,Legal Aid Higher Crime,,
MOJ,LAA,10/01/18,Higher Crime,LEGAL AID FUND,MUMIN I M HASHIM,1383766:148772725,102160.01,Legal Aid Higher Crime,,
MOJ,LAA,17/01/18,Higher Crime,LEGAL AID FUND,MPR SOLICITORS LLP,1385322:148790476,107574.07,Legal Aid Higher Crime,,
MOJ,LAA,24/01/18,Higher Crime,LEGAL AID FUND,MPR SOLICITORS LLP,1393443:148849254,99459.41,Legal Aid Higher Crime,,
MOJ,LAA,31/01/18,Civil Representation,LEGAL AID FUND,MOSS AND COLEMAN,1398759:3000001922130021,25357.81,Legal Aid Civil Representation,,
MOJ,LAA,31/01/18,Civil Representation,LEGAL AID FUND,MORECROFTS LLP,1398316:3000002117070010,33816.99,Legal Aid Civil Representation,,
MOJ,LAA,31/01/18,Civil Representation,LEGAL AID FUND,MONICA D P FORD,1396541:3000001447460018,45505.05,Legal Aid Civil Representation,,
MOJ,LAA,10/01/18,Higher Crime,LEGAL AID FUND,MOHAMMAD M HOSSAIN,1380993:148780339,72199.99,Legal Aid Higher Crime,,
MOJ,LAA,31/01/18,Higher Crime,LEGAL AID FUND,MITCHELLS SOLICITORS LLP,1396771:148872492,44072.25,Legal Aid Higher Crime,,
MOJ,LAA,04/01/18,Civil Representation,LEGAL AID FUND,MINTON MORRILL,1380193:2000000000005043,55288.02,Legal Aid Civil Representation,,
MOJ,LAA,24/01/18,Higher Crime,LEGAL AID FUND,MINKA BRAUN,1392005:148835689,37174.42,Legal Aid Higher Crime,,
MOJ,LAA,10/01/18,Higher Crime,LEGAL AID FUND,MINKA BRAUN,1382408:148738473,30912.96,Legal Aid Higher Crime,,
MOJ,LAA,24/01/18,Civil Representation,LEGAL AID FUND,MILES & PARTNERS LLP,1392479:3000001824230013,31554.87,Legal Aid Civil Representation,,
MOJ,LAA,31/01/18,Legal Help,LEGAL AID FUND,MIGRANT LEGAL PROJECT,1397358:148909848,30036.00,Legal Aid Legal Help,,
MOJ,LAA,31/01/18,Legal Help,LEGAL AID FUND,MIGRANT LEGAL PROJECT,1395690:148909765,25233.00,Legal Aid Legal Help,,
MOJ,LAA,10/01/18,Higher Crime,LEGAL AID FUND,MIDDLEWEEKS LEGAL LTD,1382715:148752626,50451.32,Legal Aid Higher Crime,,
MOJ,LAA,17/01/18,Civil Representation,LEGAL AID FUND,MICHELMORES,1387233:6028033,29423.38,Legal Aid Civil Representation,,
MOJ,LAA,24/01/18,Civil Representation,LEGAL AID FUND,MICHAELS & CO LAW LTD,1390277:3000001580580001,25000.93,Legal Aid Civil Representation,,
MOJ,LAA,31/01/18,Lower Crime,LEGAL AID FUND,MICHAEL PURDON,1397223:148910716,44859.00,Legal Aid Lower Crime,,
MOJ,LAA,03/01/18,Higher Crime,LEGAL AID FUND,MICHAEL MAGARIAN QC,1379033:148710260,30246.16,Legal Aid Higher Crime,,
MOJ,LAA,24/01/18,Higher Crime,LEGAL AID FUND,MICHAEL J LAVERY,1391988:148867762,48440.00,Legal Aid Higher Crime,,
MOJ,LAA,31/01/18,Civil Representation,LEGAL AID FUND,MICHAEL H KENT QC,1396680:148919072,69799.29,Legal Aid Civil Representation,,
MOJ,LAA,31/01/18,Civil Representation,LEGAL AID FUND,MICHAEL H KENT QC,1396680:148919216,-43975.91,Legal Aid Civil Representation,,
MOJ,LAA,31/01/18,Lower Crime,LEGAL AID FUND,MICHAEL CARROLL & CO,1394456:148910101,36000.00,Legal Aid Lower Crime,,
MOJ,LAA,17/01/18,Higher Crime,LEGAL AID FUND,MI LAW,1387408:148783216,73531.10,Legal Aid Higher Crime,,
MOJ,LAA,31/01/18,Lower Crime,LEGAL AID FUND,METCALFE COPEMAN & PETTEFAR,1398344:148910030,38700.00,Legal Aid Lower Crime,,
MOJ,LAA,31/01/18,Higher Crime,LEGAL AID FUND,MESSRS WATERFORDS SOLICITORS,1396004:148872515,95392.48,Legal Aid Higher Crime,,
MOJ,LAA,10/01/18,Higher Crime,LEGAL AID FUND,MESSRS WATERFORDS SOLICITORS,1382458:148738106,58590.48,Legal Aid Higher Crime,,
MOJ,LAA,31/01/18,Legal Help,LEGAL AID FUND,MENTAL HEALTH LEGAL REPRESENTATION LTD,1395892:148909518,55438.00,Legal Aid Legal Help,,
MOJ,LAA,03/01/18,Civil Representation,LEGAL AID FUND,MCMILLAN WILLIAMS SOLICITORS LTD,1379274:3000002069280004,38410.63,Legal Aid Civil Representation,,
MOJ,LAA,31/01/18,Lower Crime,LEGAL AID FUND,MCMILLAN WILLIAMS SOLICITORS LTD,1395962:148910061,37600.00,Legal Aid Lower Crime,,
MOJ,LAA,31/01/18,Legal Help,LEGAL AID FUND,MCMILLAN WILLIAMS SOLICITORS LTD,1394280:148909098,26300.00,Legal Aid Legal Help,,
MOJ,LAA,03/01/18,Civil Representation,LEGAL AID FUND,MCMILLAN WILLIAMS SOLICITORS LTD,1379274:3000002069280003RC,-36918.05,Legal Aid Civil Representation,,
MOJ,LAA,31/01/18,Higher Crime,LEGAL AID FUND,MCLARTYS SOLICITORS,1396784:148879281,29664.55,Legal Aid Higher Crime,,
MOJ,LAA,31/01/18,Lower Crime,LEGAL AID FUND,MCLARTYS SOLICITORS,1396784:148910075,25000.00,Legal Aid Lower Crime,,
MOJ,LAA,31/01/18,Lower Crime,LEGAL AID FUND,MCGRATH & CO SOLICITORS,1395919:148910335,30000.00,Legal Aid Lower Crime,,
MOJ,LAA,31/01/18,Higher Crime,LEGAL AID FUND,MCCORMICKS,1399086:148886515,29293.25,Legal Aid Higher Crime,,
MOJ,LAA,24/01/18,Higher Crime,LEGAL AID FUND,MCCAULEY-SLOWE SOLICITORS,1390625:148828151,41940.82,Legal Aid Higher Crime,,
MOJ,LAA,24/01/18,Higher Crime,LEGAL AID FUND,MBC SOLICITORS LTD,1390502:148835020,73943.10,Legal Aid Higher Crime,,
MOJ,LAA,24/01/18,Higher Crime,LEGAL AID FUND,MAURICE ANDREWS SOLICITORS,1393121:148835980,65378.40,Legal Aid Higher Crime,,
MOJ,LAA,17/01/18,Higher Crime,LEGAL AID FUND,MATTHEW E RADSTONE,1386064:148782797,28396.39,Legal Aid Higher Crime,,
MOJ,LAA,31/01/18,Higher Crime,LEGAL AID FUND,MATTHEW B A MCDONAGH,1395808:148878929,44245.08,Legal Aid Higher Crime,,
MOJ,LAA,03/01/18,Higher Crime,LEGAL AID FUND,MATHEW J SHERRATT,1378898:148710127,73714.79,Legal Aid Higher Crime,,
MOJ,LAA,24/01/18,Higher Crime,LEGAL AID FUND,MARY MONSON SOLICITORS,1389355:148843232,29664.55,Legal Aid Higher Crime,,
MOJ,LAA,31/01/18,Higher Crime,LEGAL AID FUND,MARTYN PROWEL LTD,1396001:148912187,85151.86,Legal Aid Higher Crime,,
MOJ,LAA,31/01/18,Lower Crime,LEGAL AID FUND,MARTYN HEWETT,1394608:148910254,25000.00,Legal Aid Lower Crime,,
MOJ,LAA,31/01/18,Lower Crime,LEGAL AID FUND,MARTIN MURRAY & ASSOCIATES,1394590:148910596,64062.00,Legal Aid Lower Crime,,
MOJ,LAA,31/01/18,Lower Crime,LEGAL AID FUND,MARTIN MURRAY & ASSOCIATES,1394589:148910906,26973.00,Legal Aid Lower Crime,,
MOJ,LAA,31/01/18,Higher Crime,LEGAL AID FUND,MARK R TRAFFORD QC,1395806:148913517,60639.13,Legal Aid Higher Crime,,
MOJ,LAA,31/01/18,Higher Crime,LEGAL AID FUND,MARK P STYLES,1396697:148906375,48440.00,Legal Aid Higher Crime,,
MOJ,LAA,24/01/18,Higher Crime,LEGAL AID FUND,MARK D TOMASSI,1391675:148843017,25693.66,Legal Aid Higher Crime,,
MOJ,LAA,11/01/18,Civil Representation,LEGAL AID FUND,MARIKA P T BELL,1384398:2000000000005083,25613.95,Legal Aid Civil Representation,,
MOJ,LAA,03/01/18,Higher Crime,LEGAL AID FUND,MARCHANT HARRIES,1379220:148715089,29172.76,Legal Aid Higher Crime,,
MOJ,LAA,10/01/18,Higher Crime,LEGAL AID FUND,MALCOLM MCGUINNESS,1384193:148738772,33070.98,Legal Aid Higher Crime,,
MOJ,LAA,24/01/18,Civil Representation,LEGAL AID FUND,MAKIN DIXON SOLICITORS LTD,1390232:3000002315060044,51224.40,Legal Aid Civil Representation,,
MOJ,LAA,24/01/18,Higher Crime,LEGAL AID FUND,MADELEINE L WOLFE,1389755:148828105,40307.64,Legal Aid Higher Crime,,
MOJ,LAA,17/01/18,Civil Representation,LEGAL AID FUND,MACKINTOSH LAW,1385626:148795788,-30600.00,Legal Aid Civil Representation,,
MOJ,LAA,24/01/18,Civil Representation,LEGAL AID FUND,MACHINS SOLICITORS LLP,1393150:3000002799780053,31136.40,Legal Aid Civil Representation,,
MOJ,LAA,24/01/18,Higher Crime,LEGAL AID FUND,M K LAW SOLICITORS LTD,1391294:148827692,107970.13,Legal Aid Higher Crime,,
MOJ,LAA,31/01/18,Lower Crime,LEGAL AID FUND,M K LAW SOLICITORS LTD,1397906:148910373,86000.00,Legal Aid Lower Crime,,
MOJ,LAA,17/01/18,Higher Crime,LEGAL AID FUND,M K LAW SOLICITORS LTD,1385209:148805573,35837.59,Legal Aid Higher Crime,,
MOJ,LAA,03/01/18,Higher Crime,LEGAL AID FUND,M K LAW SOLICITORS LTD,1378294:148710058,29664.55,Legal Aid Higher Crime,,
MOJ,LAA,17/01/18,Higher Crime,LEGAL AID FUND,M K LAW SOLICITORS LTD,1385209:148805865,29516.05,Legal Aid Higher Crime,,
MOJ,LAA,31/01/18,Lower Crime,LEGAL AID FUND,M K LAW SOLICITORS LTD,1397906:148905867,-26000.00,Legal Aid Lower Crime,,
MOJ,LAA,17/01/18,Higher Crime,LEGAL AID FUND,M B LAW LTD,1386762:148820305,107970.13,Legal Aid Higher Crime,,
MOJ,LAA,03/01/18,Higher Crime,LEGAL AID FUND,M B LAW LTD,1378280:148720215,95392.48,Legal Aid Higher Crime,,
MOJ,LAA,17/01/18,Higher Crime,LEGAL AID FUND,M B LAW LTD,1386762:148820854,48281.78,Legal Aid Higher Crime,,
MOJ,LAA,31/01/18,Higher Crime,LEGAL AID FUND,M & M SOLICITORS,1396720:148879005,107970.13,Legal Aid Higher Crime,,
MOJ,LAA,31/01/18,Lower Crime,LEGAL AID FUND,M & M SOLICITORS,1396329:148910487,31795.00,Legal Aid Lower Crime,,
MOJ,LAA,17/01/18,Higher Crime,LEGAL AID FUND,LUSTITIA LAW LTD,1387754:148782465,68180.66,Legal Aid Higher Crime,,
MOJ,LAA,31/01/18,Legal Help,LEGAL AID FUND,LUQMANI THOMPSON & PARTNERS,1394987:148909358,39472.00,Legal Aid Legal Help,,
MOJ,LAA,31/01/18,Legal Help,LEGAL AID FUND,LUPINS,1394482:148909382,57341.00,Legal Aid Legal Help,,
MOJ,LAA,31/01/18,Lower Crime,LEGAL AID FUND,LUMB & MACGILL,1395392:148910179,35000.00,Legal Aid Lower Crime,,
MOJ,LAA,17/01/18,Civil Representation,LEGAL AID FUND,LOUISE MCCALLUM,1386128:3000001833140008,39889.80,Legal Aid Civil Representation,,
MOJ,LAA,31/01/18,Civil Representation,LEGAL AID FUND,LOUISE MACLYNN,1397451:3000001580900030,35037.02,Legal Aid Civil Representation,,
MOJ,LAA,10/01/18,Civil Representation,LEGAL AID FUND,LORRAINE CAVANAGH,1382699:3000001236170100,40381.20,Legal Aid Civil Representation,,
MOJ,LAA,31/01/18,Higher Crime,LEGAL AID FUND,LLOYDS PR SOLICITORS,1395433:148872535,123900.97,Legal Aid Higher Crime,,
MOJ,LAA,31/01/18,Higher Crime,LEGAL AID FUND,LLOYDS PR SOLICITORS,1397140:148879009,89987.59,Legal Aid Higher Crime,,
MOJ,LAA,17/01/18,Higher Crime,LEGAL AID FUND,LLOYDS PR SOLICITORS,1387182:148790984,81453.55,Legal Aid Higher Crime,,
MOJ,LAA,31/01/18,Lower Crime,LEGAL AID FUND,LLOYDS PR SOLICITORS,1397140:148910524,57817.00,Legal Aid Lower Crime,,
MOJ,LAA,10/01/18,Higher Crime,LEGAL AID FUND,LLOYDS PR SOLICITORS,1381634:148758844,51650.21,Legal Aid Higher Crime,,
MOJ,LAA,03/01/18,Higher Crime,LEGAL AID FUND,LLOYDS PR SOLICITORS,1378269:148714711,43381.22,Legal Aid Higher Crime,,
MOJ,LAA,31/01/18,Lower Crime,LEGAL AID FUND,LLOYDS PR SOLICITORS,1395433:148910518,36765.00,Legal Aid Lower Crime,,
MOJ,LAA,17/01/18,Higher Crime,LEGAL AID FUND,LLOYDS PR SOLICITORS,1387182:148805453,34423.44,Legal Aid Higher Crime,,
MOJ,LAA,10/01/18,Higher Crime,LEGAL AID FUND,LLOYDS PR SOLICITORS,1381634:148738301,27320.33,Legal Aid Higher Crime,,
MOJ,LAA,10/01/18,Higher Crime,LEGAL AID FUND,LLM SOLICITORS (LONDON) LTD-ADVOCATE,1382540:148758428,29057.35,Legal Aid Higher Crime,,
MOJ,LAA,17/01/18,Higher Crime,LEGAL AID FUND,LLM SOLICITORS (LONDON) LTD,1387563:148820300,107574.07,Legal Aid Higher Crime,,
MOJ,LAA,31/01/18,Lower Crime,LEGAL AID FUND,LLM SOLICITORS (LONDON) LTD,1397474:148911131,53294.00,Legal Aid Lower Crime,,
MOJ,LAA,24/01/18,Higher Crime,LEGAL AID FUND,LLM SOLICITORS (LONDON) LTD,1390933:148828324,31857.02,Legal Aid Higher Crime,,
MOJ,LAA,17/01/18,Higher Crime,LEGAL AID FUND,LISTER BRADY CRIMINAL DEFENCE SOLICITORS,1386809:148790591,81272.04,Legal Aid Higher Crime,,
MOJ,LAA,31/01/18,Legal Help,LEGAL AID FUND,LISA MARIE MCNULTY SOLICITOR,1394097:148909450,28111.00,Legal Aid Legal Help,,
MOJ,LAA,31/01/18,Civil Representation,LEGAL AID FUND,LINSEY KNOWLES,1398215:3000001587560021,28080.64,Legal Aid Civil Representation,,
MOJ,LAA,31/01/18,Higher Crime,LEGAL AID FUND,LIBERTY LAW SOLICITORS LTD,1396764:148894647,89975.11,Legal Aid Higher Crime,,
MOJ,LAA,10/01/18,Higher Crime,LEGAL AID FUND,LIAM D WALKER,1381576:148759043,39078.96,Legal Aid Higher Crime,,
MOJ,LAA,31/01/18,Lower Crime,LEGAL AID FUND,LHD SOLICITORS LTD,1396378:148910198,36600.00,Legal Aid Lower Crime,,
MOJ,LAA,24/01/18,Higher Crime,LEGAL AID FUND,LEWIS POWER QC,1389470:148835120,58885.66,Legal Aid Higher Crime,,
MOJ,LAA,31/01/18,Higher Crime,LEGAL AID FUND,LEWIS NEDAS LAW LTD,1395559:148878125,53394.28,Legal Aid Higher Crime,,
MOJ,LAA,31/01/18,Lower Crime,LEGAL AID FUND,LEWIS NEDAS LAW LTD,1395559:148910085,30700.00,Legal Aid Lower Crime,,
MOJ,LAA,17/01/18,Higher Crime,LEGAL AID FUND,LEWIS NEDAS LAW LTD,1387303:148805471,25787.57,Legal Aid Higher Crime,,
MOJ,LAA,31/01/18,Lower Crime,LEGAL AID FUND,LEVY & CO SOLICITORS LLP,1397090:148910022,56300.00,Legal Aid Lower Crime,,
MOJ,LAA,31/01/18,Lower Crime,LEGAL AID FUND,LEVY & CO SOLICITORS LLP,1397119:148910023,30700.00,Legal Aid Lower Crime,,
MOJ,LAA,17/01/18,Higher Crime,LEGAL AID FUND,LEVALES SOLICITORS LLP,1387216:148819895,52704.13,Legal Aid Higher Crime,,
MOJ,LAA,17/01/18,Higher Crime,LEGAL AID FUND,LEVALES SOLICITORS LLP,1387216:148820187,29884.85,Legal Aid Higher Crime,,
MOJ,LAA,17/01/18,Higher Crime,LEGAL AID FUND,LESLIE FRANKS SOLICITORS,1386782:148805897,84770.34,Legal Aid Higher Crime,,
MOJ,LAA,31/01/18,Lower Crime,LEGAL AID FUND,LESLIE FRANKS SOLICITORS,1396328:148910645,67772.00,Legal Aid Lower Crime,,
MOJ,LAA,31/01/18,Civil Representation,LEGAL AID FUND,LEON STRINGER,1393994:3000001408390049,34317.54,Legal Aid Civil Representation,,
MOJ,LAA,11/01/18,Civil Representation,LEGAL AID FUND,LEIGH DAY & CO,1384396:2000000000005092,133422.18,Legal Aid Civil Representation,,
MOJ,LAA,31/01/18,Legal Help,LEGAL AID FUND,LEI DAT BAIG SOLICITORS LIMITED,1398250:148909697,60339.00,Legal Aid Legal Help,,
MOJ,LAA,17/01/18,Civil Representation,LEGAL AID FUND,LEGAL SERVICES FOR CHILDREN,1386791:3000002235450008,29688.03,Legal Aid Civil Representation,,
MOJ,LAA,03/01/18,Legal Help,LEGAL AID FUND,LEGAL RIGHTS PARTNERSHIP LLP,1379348:148734721,25399.13,Legal Aid Legal Help,,
MOJ,LAA,31/01/18,Lower Crime,LEGAL AID FUND,LAWTONS SOLICITORS LTD,1397477:148910372,35500.00,Legal Aid Lower Crime,,
MOJ,LAA,31/01/18,Lower Crime,LEGAL AID FUND,LAWTONS SOLICITORS LTD,1395604:148910397,35000.00,Legal Aid Lower Crime,,
MOJ,LAA,24/01/18,Higher Crime,LEGAL AID FUND,LAWRENCE & CO SOLICITORS CDS LLP,1392851:148842143,57090.10,Legal Aid Higher Crime,,
MOJ,LAA,31/01/18,Lower Crime,LEGAL AID FUND,LAWRENCE & CO SOLICITORS CDS LLP,1397990:148910095,39800.00,Legal Aid Lower Crime,,
MOJ,LAA,31/01/18,Legal Help,LEGAL AID FUND,LAWANA & CO,1396793:148908972,64000.00,Legal Aid Legal Help,,
MOJ,LAA,24/01/18,Higher Crime,LEGAL AID FUND,LAURENCE LEE & CO,1393209:148864585,53623.67,Legal Aid Higher Crime,,
MOJ,LAA,31/01/18,Lower Crime,LEGAL AID FUND,LANSBURY WORTHINGTON LTD,1397268:148910035,54900.00,Legal Aid Lower Crime,,
MOJ,LAA,31/01/18,Civil Representation,LEGAL AID FUND,LANGLEYS LLP,1399085:3000001825010006,27846.66,Legal Aid Civil Representation,,
MOJ,LAA,17/01/18,Higher Crime,LEGAL AID FUND,LAM & MEERABUX SOLICITORS,1387564:148783490,27468.00,Legal Aid Higher Crime,,
MOJ,LAA,24/01/18,Higher Crime,LEGAL AID FUND,L P EVANS SOLICITORS,1390951:148864900,30311.06,Legal Aid Higher Crime,,
MOJ,LAA,31/01/18,Lower Crime,LEGAL AID FUND,KYLES LEGAL PRACTICE,1397468:148911028,38270.00,Legal Aid Lower Crime,,
MOJ,LAA,17/01/18,Civil Representation,LEGAL AID FUND,KNIGHTS PROFESSIONAL SERVICES LTD,1387271:148801916,29561.76,Legal Aid Civil Representation,,
MOJ,LAA,17/01/18,Civil Representation,LEGAL AID FUND,KNIGHTS PROFESSIONAL SERVICES LTD,1387271:148801821,26299.67,Legal Aid Civil Representation,,
MOJ,LAA,17/01/18,Higher Crime,LEGAL AID FUND,KIRWANS,1385701:148791060,28755.10,Legal Aid Higher Crime,,
MOJ,LAA,31/01/18,Lower Crime,LEGAL AID FUND,KIRWANS,1394075:148889419,25177.00,Legal Aid Lower Crime,,
MOJ,LAA,10/01/18,Higher Crime,LEGAL AID FUND,KINGSMAN SOLICITORS LTD,1381178:148775517,29284.36,Legal Aid Higher Crime,,
MOJ,LAA,17/01/18,Higher Crime,LEGAL AID FUND,KINGS SOLICITORS,1388540:148820151,53329.46,Legal Aid Higher Crime,,
MOJ,LAA,24/01/18,Higher Crime,LEGAL AID FUND,KIERAN P VAUGHAN,1389409:148862177,37219.99,Legal Aid Higher Crime,,
MOJ,LAA,31/01/18,Higher Crime,LEGAL AID FUND,KIERAN P VAUGHAN,1396177:148906687,37219.99,Legal Aid Higher Crime,,
MOJ,LAA,17/01/18,Higher Crime,LEGAL AID FUND,KIERAN & CO SOLICITORS,1386503:148797908,89975.11,Legal Aid Higher Crime,,
MOJ,LAA,10/01/18,Higher Crime,LEGAL AID FUND,KHAN SOLICITORS LTD,1383629:148745039,36605.61,Legal Aid Higher Crime,,
MOJ,LAA,31/01/18,Higher Crime,LEGAL AID FUND,KHAN SOLICITORS LTD,1397947:148885893,26635.62,Legal Aid Higher Crime,,
MOJ,LAA,24/01/18,Civil Representation,LEGAL AID FUND,KEVIN SHEARN FAMILY LAW PRACTICE LTD,1389035:300000121995RC568,27250.17,Legal Aid Civil Representation,,
MOJ,LAA,31/01/18,Legal Help,LEGAL AID FUND,KESAR & CO SOLICITORS,1397859:148909892,25625.00,Legal Aid Legal Help,,
MOJ,LAA,31/01/18,Higher Crime,LEGAL AID FUND,KEPPE ROFER,1398781:148879229,89975.11,Legal Aid Higher Crime,,
MOJ,LAA,31/01/18,Lower Crime,LEGAL AID FUND,KELLYS,1395002:148910882,27588.00,Legal Aid Lower Crime,,
MOJ,LAA,03/01/18,Higher Crime,LEGAL AID FUND,KELLOCKS,1379964:148709887,89975.11,Legal Aid Higher Crime,,
MOJ,LAA,31/01/18,Higher Crime,LEGAL AID FUND,KELCEY & HALL SOLICITORS,1398024:148879201,28765.37,Legal Aid Higher Crime,,
MOJ,LAA,17/01/18,Higher Crime,LEGAL AID FUND,KEITH DYSON SOLICITORS LTD,1385403:148804801,29664.55,Legal Aid Higher Crime,,
MOJ,LAA,24/01/18,Higher Crime,LEGAL AID FUND,KATE CHIDGEY,1390092:148849717,37138.80,Legal Aid Higher Crime,,
MOJ,LAA,31/01/18,Civil Representation,LEGAL AID FUND,KARL J ROWLEY,1394002:148890493,25902.45,Legal Aid Civil Representation,,
MOJ,LAA,24/01/18,Higher Crime,LEGAL AID FUND,KANGS SOLICITORS,1391420:148835026,105857.75,Legal Aid Higher Crime,,
MOJ,LAA,31/01/18,Lower Crime,LEGAL AID FUND,K LEGAL SOLICITORS,1397863:148911140,26209.00,Legal Aid Lower Crime,,
MOJ,LAA,17/01/18,Higher Crime,LEGAL AID FUND,JUSTIN B K RIVETT,1385749:148658648,72199.99,Legal Aid Higher Crime,,
MOJ,LAA,10/01/18,Civil Representation,LEGAL AID FUND,JULIAN D MATTHEWS,1381507:148735288,43047.81,Legal Aid Civil Representation,,
MOJ,LAA,24/01/18,Civil Representation,LEGAL AID FUND,JULIA M GASPARRO,1389794:3000001636320003RC,-25898.40,Legal Aid Civil Representation,,
MOJ,LAA,17/01/18,Higher Crime,LEGAL AID FUND,JSP LAW LTD,1387366:148790934,29684.23,Legal Aid Higher Crime,,
MOJ,LAA,10/01/18,Civil Representation,LEGAL AID FUND,JOY PINKHAM,1382373:148755877,50619.60,Legal Aid Civil Representation,,
MOJ,LAA,17/01/18,Higher Crime,LEGAL AID FUND,JOSEPH HILL & CO,1384844:148790473,127029.30,Legal Aid Higher Crime,,
MOJ,LAA,31/01/18,Lower Crime,LEGAL AID FUND,JOSEPH HILL & CO,1397989:148910607,34298.00,Legal Aid Lower Crime,,
MOJ,LAA,17/01/18,Civil Representation,LEGAL AID FUND,JORDANS SOLICITORS,1384793:3000001073370027,35152.79,Legal Aid Civil Representation,,
MOJ,LAA,31/01/18,Higher Crime,LEGAL AID FUND,JONATHAN J ANDERS,1396198:148913286,44245.08,Legal Aid Higher Crime,,
MOJ,LAA,31/01/18,Lower Crime,LEGAL AID FUND,JOHNSON ASTILLS,1398713:148909994,28500.00,Legal Aid Lower Crime,,
MOJ,LAA,10/01/18,Civil Representation,LEGAL AID FUND,JOHNSON & GAUNT SOLICITORS LTD,1382184:148707669,27084.89,Legal Aid Civil Representation,,
MOJ,LAA,03/01/18,Civil Representation,LEGAL AID FUND,JOHN MURPHY,1380140:1000000644450001,63244.28,Legal Aid Civil Representation,,
MOJ,LAA,31/01/18,Lower Crime,LEGAL AID FUND,JOHN DELANEY & CO SOLICITORS,1395418:148910186,33000.00,Legal Aid Lower Crime,,
MOJ,LAA,24/01/18,Higher Crime,LEGAL AID FUND,JOHN C TOWNSEND,1391862:148838598,48440.00,Legal Aid Higher Crime,,
MOJ,LAA,31/01/18,Higher Crime,LEGAL AID FUND,JOHN C ELVIDGE QC,1399064:148920642,96000.00,Legal Aid Higher Crime,,
MOJ,LAA,09/01/18,Civil Representation,LEGAL AID FUND,JOANNE PORTER,1380215:3000002350510006RC,-36333.96,Legal Aid Civil Representation,,
MOJ,LAA,31/01/18,Civil Representation,LEGAL AID FUND,JMW SOLICITORS LLP,1396504:148148495,25757.07,Legal Aid Civil Representation,,
MOJ,LAA,24/01/18,Civil Representation,LEGAL AID FUND,JI SOLICITORS LTD,1392509:148831093,25182.07,Legal Aid Civil Representation,,
MOJ,LAA,31/01/18,Higher Crime,LEGAL AID FUND,JFH LAW,1397903:148894617,29199.56,Legal Aid Higher Crime,,
MOJ,LAA,24/01/18,Higher Crime,LEGAL AID FUND,JERMAN SAMUELS & PEARSON LLP,1389639:148835909,73281.52,Legal Aid Higher Crime,,
MOJ,LAA,31/01/18,Lower Crime,LEGAL AID FUND,JERMAN SAMUELS & PEARSON LLP,1395134:148910396,65000.00,Legal Aid Lower Crime,,
MOJ,LAA,24/01/18,Civil Representation,LEGAL AID FUND,JAY BANERJI,1389216:3000001877050049,27702.00,Legal Aid Civil Representation,,
MOJ,LAA,03/01/18,Civil Representation,LEGAL AID FUND,JAQUELINE ANN GOODBOURN,1380141:1000000383920001,34907.73,Legal Aid Civil Representation,,
MOJ,LAA,17/01/18,Higher Crime,LEGAL AID FUND,JANES SOLICITORS,1388384:148824400,71332.77,Legal Aid Higher Crime,,
MOJ,LAA,31/01/18,Higher Crime,LEGAL AID FUND,JANES SOLICITORS,1396854:148907159,64682.95,Legal Aid Higher Crime,,
MOJ,LAA,10/01/18,Higher Crime,LEGAL AID FUND,JAMES WALKER,1381016:148752163,39707.40,Legal Aid Higher Crime,,
MOJ,LAA,24/01/18,Higher Crime,LEGAL AID FUND,JAMES W O CURTIS QC,1393338:148849527,73753.97,Legal Aid Higher Crime,,
MOJ,LAA,03/01/18,Civil Representation,LEGAL AID FUND,JAMES TURNER QC,1379716:148735682,36303.00,Legal Aid Civil Representation,,
MOJ,LAA,31/01/18,Higher Crime,LEGAL AID FUND,JAMES T N SCOBIE QC,1396960:148913268,36115.50,Legal Aid Higher Crime,,
MOJ,LAA,31/01/18,Lower Crime,LEGAL AID FUND,JAMES MURRAY SOLICITORS,1394072:148910684,29405.00,Legal Aid Lower Crime,,
MOJ,LAA,09/01/18,Civil Representation,LEGAL AID FUND,JAMES J HARGAN,1380213:3000001950860013RC,-29683.91,Legal Aid Civil Representation,,
MOJ,LAA,31/01/18,Legal Help,LEGAL AID FUND,JACKSON LEES GROUP LTD,1394741:148909898,51475.00,Legal Aid Legal Help,,
MOJ,LAA,31/01/18,Lower Crime,LEGAL AID FUND,JACKSON LEES GROUP LTD,1394741:148911188,38260.00,Legal Aid Lower Crime,,
MOJ,LAA,31/01/18,Legal Help,LEGAL AID FUND,JACKSON LEES GROUP LTD,1396446:148909350,37087.00,Legal Aid Legal Help,,
MOJ,LAA,31/01/18,Lower Crime,LEGAL AID FUND,J W HUGHES & CO LLP,1394082:148909969,31500.00,Legal Aid Lower Crime,,
MOJ,LAA,17/01/18,Higher Crime,LEGAL AID FUND,J KIRSTY BRIMELOW,1387437:148798182,32020.15,Legal Aid Higher Crime,,
MOJ,LAA,31/01/18,Lower Crime,LEGAL AID FUND,J D SPICER ZEB,1395474:148910604,85494.00,Legal Aid Lower Crime,,
MOJ,LAA,10/01/18,Higher Crime,LEGAL AID FUND,J D SPICER ZEB,1383954:148738534,34311.85,Legal Aid Higher Crime,,
MOJ,LAA,31/01/18,Higher Crime,LEGAL AID FUND,J D SPICER ZEB,1395474:148877977,28272.44,Legal Aid Higher Crime,,
MOJ,LAA,31/01/18,Higher Crime,LEGAL AID FUND,J D SPICER ZEB,1397549:148893679,28069.94,Legal Aid Higher Crime,,
MOJ,LAA,17/01/18,Higher Crime,LEGAL AID FUND,J D SOLICITORS,1386534:148790606,100841.25,Legal Aid Higher Crime,,
MOJ,LAA,24/01/18,Higher Crime,LEGAL AID FUND,J D SOLICITORS,1390171:148827338,35725.87,Legal Aid Higher Crime,,
MOJ,LAA,17/01/18,Higher Crime,LEGAL AID FUND,J D SOLICITORS,1388164:148805350,26095.93,Legal Aid Higher Crime,,
MOJ,LAA,24/01/18,Civil Representation,LEGAL AID FUND,ISON HARRISON LTD,1389966:3000001833140009,51653.90,Legal Aid Civil Representation,,
MOJ,LAA,24/01/18,Civil Representation,LEGAL AID FUND,ISON HARRISON LTD,1389877:148832124,33050.74,Legal Aid Civil Representation,,
MOJ,LAA,31/01/18,Legal Help,LEGAL AID FUND,ISON HARRISON LTD,1395417:148909335,26780.00,Legal Aid Legal Help,,
MOJ,LAA,17/01/18,Civil Representation,LEGAL AID FUND,IRWIN MITCHELL LLP,1388810:148781416,34306.98,Legal Aid Civil Representation,,
MOJ,LAA,24/01/18,Civil Representation,LEGAL AID FUND,IRWIN MITCHELL LLP,1392471:148867759,32755.58,Legal Aid Civil Representation,,
MOJ,LAA,10/01/18,Higher Crime,LEGAL AID FUND,IRWIN MITCHELL LLP,1383315:148738880,27041.96,Legal Aid Higher Crime,,
MOJ,LAA,17/01/18,Civil Representation,LEGAL AID FUND,IRWIN MITCHELL LLP,1388809:148786293,26640.55,Legal Aid Civil Representation,,
MOJ,LAA,17/01/18,Civil Representation,LEGAL AID FUND,IRWIN MITCHELL LLP,1388809:148786400,-26860.55,Legal Aid Civil Representation,,
MOJ,LAA,31/01/18,Higher Crime,LEGAL AID FUND,IRVINE THANVI NATAS SOLICITORS,1395372:148871831,87420.45,Legal Aid Higher Crime,,
MOJ,LAA,31/01/18,Lower Crime,LEGAL AID FUND,IRVINE THANVI NATAS SOLICITORS,1395372:148910045,43200.00,Legal Aid Lower Crime,,
MOJ,LAA,17/01/18,Higher Crime,LEGAL AID FUND,IRVINE THANVI NATAS SOLICITORS,1386214:148820717,26663.09,Legal Aid Higher Crime,,
MOJ,LAA,31/01/18,Legal Help,LEGAL AID FUND,IRIS LAW SOLICITORS,1398310:148909695,26255.00,Legal Aid Legal Help,,
MOJ,LAA,31/01/18,Lower Crime,LEGAL AID FUND,INSTALAW,1398820:148911264,79915.00,Legal Aid Lower Crime,,
MOJ,LAA,17/01/18,Higher Crime,LEGAL AID FUND,IMRAN KHAN & PARTNERS,1386859:148805487,78192.24,Legal Aid Higher Crime,,
MOJ,LAA,24/01/18,Higher Crime,LEGAL AID FUND,IAN F HENDERSON,1390394:148843162,60060.46,Legal Aid Higher Crime,,
MOJ,LAA,31/01/18,Lower Crime,LEGAL AID FUND,I B B SOLICITORS,1395883:148910064,75300.00,Legal Aid Lower Crime,,
MOJ,LAA,17/01/18,Higher Crime,LEGAL AID FUND,I A LAW,1388478:148791216,35597.46,Legal Aid Higher Crime,,
MOJ,LAA,31/01/18,Higher Crime,LEGAL AID FUND,HUSSAIN SOLICITORS LTD,1395423:148894432,51303.15,Legal Aid Higher Crime,,
MOJ,LAA,10/01/18,Higher Crime,LEGAL AID FUND,HUMPHRYS DAWSON,1380791:148737990,63036.71,Legal Aid Higher Crime,,
MOJ,LAA,24/01/18,Higher Crime,LEGAL AID FUND,HUMPHRYS DAWSON,1389595:148827059,42867.51,Legal Aid Higher Crime,,
MOJ,LAA,31/01/18,Lower Crime,LEGAL AID FUND,HUMPHRYS DAWSON,1394957:148910462,26312.00,Legal Aid Lower Crime,,
MOJ,LAA,24/01/18,Higher Crime,LEGAL AID FUND,HULLOCK & CO,1390535:148842067,86270.69,Legal Aid Higher Crime,,
MOJ,LAA,17/01/18,Higher Crime,LEGAL AID FUND,HUGHMANS,1386922:148783381,37296.80,Legal Aid Higher Crime,,
MOJ,LAA,31/01/18,Civil Representation,LEGAL AID FUND,HUGH G MERRY,1396251:3000002331430010,32830.79,Legal Aid Civil Representation,,
MOJ,LAA,31/01/18,Higher Crime,LEGAL AID FUND,HUGH A MCKEE,1393988:148876778,89120.00,Legal Aid Higher Crime,,
MOJ,LAA,24/01/18,Higher Crime,LEGAL AID FUND,HSK LEGAL SERVICES LTD,1392187:148849587,89975.11,Legal Aid Higher Crime,,
MOJ,LAA,31/01/18,Higher Crime,LEGAL AID FUND,HOWELLS LLP,1398033:148878518,58953.35,Legal Aid Higher Crime,,
MOJ,LAA,31/01/18,Lower Crime,LEGAL AID FUND,HOWELLS LLP,1398033:148910165,44900.00,Legal Aid Lower Crime,,
MOJ,LAA,31/01/18,Legal Help,LEGAL AID FUND,HOWE & CO,1395385:148909422,60361.00,Legal Aid Legal Help,,
MOJ,LAA,24/01/18,Higher Crime,LEGAL AID FUND,HOWARD BERNSTEIN SOLICITORS,1389603:148849815,62785.28,Legal Aid Higher Crime,,
MOJ,LAA,31/01/18,Civil Representation,LEGAL AID FUND,HOWARD & CO,1398377:3000000936670014,40669.18,Legal Aid Civil Representation,,
MOJ,LAA,31/01/18,Lower Crime,LEGAL AID FUND,HOWARD & BYRNE SOLICITORS,1395935:148910177,46000.00,Legal Aid Lower Crime,,
MOJ,LAA,17/01/18,Higher Crime,LEGAL AID FUND,HOWARD & BYRNE SOLICITORS,1386552:148782527,30828.11,Legal Aid Higher Crime,,
MOJ,LAA,03/01/18,Higher Crime,LEGAL AID FUND,HORSMAN SOLICITORS LTD,1379438:148720651,31517.63,Legal Aid Higher Crime,,
MOJ,LAA,31/01/18,Lower Crime,LEGAL AID FUND,HORSMAN SOLICITORS LTD,1397240:148910874,25072.00,Legal Aid Lower Crime,,
MOJ,LAA,24/01/18,Higher Crime,LEGAL AID FUND,HOGAN BROWN SOLICITORS,1390183:148864718,62067.28,Legal Aid Higher Crime,,
MOJ,LAA,24/01/18,Higher Crime,LEGAL AID FUND,HODGSON COULTHARD & CO,1392522:148828174,31513.44,Legal Aid Higher Crime,,
MOJ,LAA,10/01/18,Higher Crime,LEGAL AID FUND,HODGE JONES & ALLEN LLP,1382482:148738498,68560.95,Legal Aid Higher Crime,,
MOJ,LAA,31/01/18,Lower Crime,LEGAL AID FUND,HODGE JONES & ALLEN LLP,1395471:148910642,60002.00,Legal Aid Lower Crime,,
MOJ,LAA,31/01/18,Higher Crime,LEGAL AID FUND,HINE SOLICITORS-ADVOCATE,1398897:148878646,37469.28,Legal Aid Higher Crime,,
MOJ,LAA,31/01/18,Higher Crime,LEGAL AID FUND,HINE SOLICITORS,1397926:148912106,89975.11,Legal Aid Higher Crime,,
MOJ,LAA,31/01/18,Lower Crime,LEGAL AID FUND,HINE SOLICITORS,1397926:148911084,41746.00,Legal Aid Lower Crime,,
MOJ,LAA,31/01/18,Lower Crime,LEGAL AID FUND,HINE SOLICITORS,1397925:148911085,40146.00,Legal Aid Lower Crime,,
MOJ,LAA,31/01/18,Lower Crime,LEGAL AID FUND,HINE SOLICITORS,1394651:148911400,31317.00,Legal Aid Lower Crime,,
MOJ,LAA,31/01/18,Lower Crime,LEGAL AID FUND,HINE SOLICITORS,1397531:148911088,30419.00,Legal Aid Lower Crime,,
MOJ,LAA,31/01/18,Civil Representation,LEGAL AID FUND,HINDLE CAMPBELL LTD T/A HINDLE CAMPBELL LAW,1397615:3000001472600026,48256.76,Legal Aid Civil Representation,,
MOJ,LAA,17/01/18,Higher Crime,LEGAL AID FUND,HERMANS,1386216:148783879,89975.11,Legal Aid Higher Crime,,
MOJ,LAA,24/01/18,Higher Crime,LEGAL AID FUND,HERMANS,1389917:148842790,27455.52,Legal Aid Higher Crime,,
MOJ,LAA,31/01/18,Lower Crime,LEGAL AID FUND,HENRY'S SOLICITORS LTD,1395460:148910860,31499.00,Legal Aid Lower Crime,,
MOJ,LAA,17/01/18,Higher Crime,LEGAL AID FUND,HENRY HYAMS,1384788:148783550,39490.51,Legal Aid Higher Crime,,
MOJ,LAA,31/01/18,Lower Crime,LEGAL AID FUND,HENRY HYAMS,1397563:148910773,33699.00,Legal Aid Lower Crime,,
MOJ,LAA,31/01/18,Lower Crime,LEGAL AID FUND,HENNESSY & HAMMUDI,1396726:148910281,60000.00,Legal Aid Lower Crime,,
MOJ,LAA,31/01/18,Lower Crime,LEGAL AID FUND,HEALEY COLBON,1397142:148910018,27300.00,Legal Aid Lower Crime,,
MOJ,LAA,10/01/18,Higher Crime,LEGAL AID FUND,HE LAW LTD,1381821:148738514,89975.11,Legal Aid Higher Crime,,
MOJ,LAA,31/01/18,Lower Crime,LEGAL AID FUND,HDH LAW,1397473:148910368,28000.00,Legal Aid Lower Crime,,
MOJ,LAA,10/01/18,Civil Representation,LEGAL AID FUND,HCB PARK WOODFINE  LLP,1383632:148755803,35115.16,Legal Aid Civil Representation,,
MOJ,LAA,31/01/18,Civil Representation,LEGAL AID FUND,HAYLEY M DANIEL,1395762:3000002240090041RC,-31566.08,Legal Aid Civil Representation,,
MOJ,LAA,24/01/18,Higher Crime,LEGAL AID FUND,HAYGARTH JONES,1392115:148842482,29664.55,Legal Aid Higher Crime,,
MOJ,LAA,12/01/18,Civil Representation,LEGAL AID FUND,HAY & KILNER LLP,1384427:2000000000005117,102286.21,Legal Aid Civil Representation,,
MOJ,LAA,12/01/18,Civil Representation,LEGAL AID FUND,HAY & KILNER LLP,1384427:148544414,-37659.60,Legal Aid Civil Representation,,
MOJ,LAA,31/01/18,Lower Crime,LEGAL AID FUND,HASKELL & CO,1396746:148910871,31548.00,Legal Aid Lower Crime,,
MOJ,LAA,10/01/18,Higher Crime,LEGAL AID FUND,HARWOOD SOLICITORS,1380871:148745078,72372.67,Legal Aid Higher Crime,,
MOJ,LAA,17/01/18,Higher Crime,LEGAL AID FUND,HARWOOD SOLICITORS,1387396:148797515,68609.52,Legal Aid Higher Crime,,
MOJ,LAA,10/01/18,Higher Crime,LEGAL AID FUND,HARRIS SOLICITORS LTD,1381830:148745073,60310.56,Legal Aid Higher Crime,,
MOJ,LAA,10/01/18,Higher Crime,LEGAL AID FUND,HARRIS SOLICITORS LTD,1381830:148738868,49729.07,Legal Aid Higher Crime,,
MOJ,LAA,24/01/18,Higher Crime,LEGAL AID FUND,HARRIS SOLICITORS LTD,1390923:148827038,35861.82,Legal Aid Higher Crime,,
MOJ,LAA,31/01/18,Higher Crime,LEGAL AID FUND,HARRIS SOLICITORS LTD,1397844:148912567,31428.37,Legal Aid Higher Crime,,
MOJ,LAA,31/01/18,Lower Crime,LEGAL AID FUND,HARRIS SOLICITORS LTD,1397844:148911100,26117.00,Legal Aid Lower Crime,,
MOJ,LAA,31/01/18,Lower Crime,LEGAL AID FUND,HARRIS CUFFARO & NICHOLS,1397272:148910020,39200.00,Legal Aid Lower Crime,,
MOJ,LAA,10/01/18,Higher Crime,LEGAL AID FUND,HARRINGTONS SOLICITORS LTD,1381033:148751936,46697.62,Legal Aid Higher Crime,,
MOJ,LAA,24/01/18,Civil Representation,LEGAL AID FUND,HARNEY & WELLS,1390166:3000001567390022,28507.96,Legal Aid Civil Representation,,
MOJ,LAA,10/01/18,Civil Representation,LEGAL AID FUND,HARINDER KAUR,1381275:3000001158110018,46149.46,Legal Aid Civil Representation,,
MOJ,LAA,31/01/18,Civil Representation,LEGAL AID FUND,HARINDER KAUR,1398163:3000001556960012,27227.44,Legal Aid Civil Representation,,
MOJ,LAA,24/01/18,Civil Representation,LEGAL AID FUND,HANNAH M MARKHAM QC,1389273:3000002482760007,34473.60,Legal Aid Civil Representation,,
MOJ,LAA,24/01/18,Higher Crime,LEGAL AID FUND,HAMPTON SOLICITORS,1391464:148827657,107970.13,Legal Aid Higher Crime,,
MOJ,LAA,31/01/18,Lower Crime,LEGAL AID FUND,HAMER CHILDS,1396480:148910342,30000.00,Legal Aid Lower Crime,,
MOJ,LAA,31/01/18,Lower Crime,LEGAL AID FUND,HAL SOLICITORS,1397554:148910366,29500.00,Legal Aid Lower Crime,,
MOJ,LAA,17/01/18,Higher Crime,LEGAL AID FUND,HADAWAY & HADAWAY SOLICITORS LLP,1384802:148796839,41923.85,Legal Aid Higher Crime,,
MOJ,LAA,31/01/18,Lower Crime,LEGAL AID FUND,H P GOWER SOLICITORS,1397486:148911118,52370.00,Legal Aid Lower Crime,,
MOJ,LAA,31/01/18,Lower Crime,LEGAL AID FUND,GWB HARTHILLS LLP,1395383:148910746,28265.00,Legal Aid Lower Crime,,
MOJ,LAA,24/01/18,Higher Crime,LEGAL AID FUND,GUY GOZEM QC,1389818:148838778,96000.00,Legal Aid Higher Crime,,
MOJ,LAA,31/01/18,Lower Crime,LEGAL AID FUND,GURNEY HARDEN SOLICITORS,1397116:148910872,35849.00,Legal Aid Lower Crime,,
MOJ,LAA,10/01/18,Higher Crime,LEGAL AID FUND,GULAM M AHMED,1382968:148772739,67440.00,Legal Aid Higher Crime,,
MOJ,LAA,31/01/18,Legal Help,LEGAL AID FUND,GUILE NICHOLAS-INC DONALD GALBRAITH & CO,1396755:148908986,73400.00,Legal Aid Legal Help,,
MOJ,LAA,31/01/18,Legal Help,LEGAL AID FUND,GUILE NICHOLAS-INC DONALD GALBRAITH & CO,1398068:148909918,37515.00,Legal Aid Legal Help,,
MOJ,LAA,31/01/18,Civil Representation,LEGAL AID FUND,GREGORY C ROGERS,1398662:3000001665520009,35899.20,Legal Aid Civil Representation,,
MOJ,LAA,31/01/18,Civil Representation,LEGAL AID FUND,GREGORY C ROGERS,1398662:3000002605130008,29548.80,Legal Aid Civil Representation,,
MOJ,LAA,24/01/18,Higher Crime,LEGAL AID FUND,GREG KRIEGER,1390780:148843124,33173.35,Legal Aid Higher Crime,,
MOJ,LAA,31/01/18,Lower Crime,LEGAL AID FUND,GRECH GOODEN SOLICITORS LTD,1397178:148910455,25544.00,Legal Aid Lower Crime,,
MOJ,LAA,17/01/18,Higher Crime,LEGAL AID FUND,GRAHAME STOWE BATESON,1386966:148790195,71375.92,Legal Aid Higher Crime,,
MOJ,LAA,31/01/18,Civil Representation,LEGAL AID FUND,GRAHAME STOWE BATESON,1394910:3000002461570007,34435.13,Legal Aid Civil Representation,,
MOJ,LAA,31/01/18,Higher Crime,LEGAL AID FUND,GRAHAM R TREMBATH QC,1396259:148920925,31870.88,Legal Aid Higher Crime,,
MOJ,LAA,24/01/18,Civil Representation,LEGAL AID FUND,GRAHAM & ROSEN LTD,1392504:3000002306020014,28833.30,Legal Aid Civil Representation,,
MOJ,LAA,10/01/18,Higher Crime,LEGAL AID FUND,GORDON SHINE & COMPANY SOLICITORS,1382227:148752044,85163.64,Legal Aid Higher Crime,,
MOJ,LAA,10/01/18,Civil Representation,LEGAL AID FUND,GOODMAN RAY SOLICITORS LLP,1381339:3000001896400065,31591.90,Legal Aid Civil Representation,,
MOJ,LAA,17/01/18,Civil Representation,LEGAL AID FUND,GOODMAN RAY SOLICITORS LLP,1386477:148802940,29372.81,Legal Aid Civil Representation,,
MOJ,LAA,17/01/18,Civil Representation,LEGAL AID FUND,GOODMAN RAY SOLICITORS LLP,1386477:148803024,-29502.81,Legal Aid Civil Representation,,
MOJ,LAA,31/01/18,Higher Crime,LEGAL AID FUND,GOODALL BARNETT JAMES SOLICITORS,1396433:148912060,89975.11,Legal Aid Higher Crime,,
MOJ,LAA,31/01/18,Lower Crime,LEGAL AID FUND,GOODALL BARNETT JAMES SOLICITORS,1396433:148910251,27100.00,Legal Aid Lower Crime,,
MOJ,LAA,31/01/18,Higher Crime,LEGAL AID FUND,GOMER WILLIAMS & CO LTD,1395519:148893934,52509.13,Legal Aid Higher Crime,,
MOJ,LAA,31/01/18,Lower Crime,LEGAL AID FUND,GOLDSTONES SOLICITORS LTD,1395941:148909972,29300.00,Legal Aid Lower Crime,,
MOJ,LAA,31/01/18,Higher Crime,LEGAL AID FUND,GOLDMAN BAILEY SOLICITORS,1397157:148893691,89975.11,Legal Aid Higher Crime,,
MOJ,LAA,31/01/18,Legal Help,LEGAL AID FUND,GLEDHILL SOLICITORS,1395045:148909165,37918.00,Legal Aid Legal Help,,
MOJ,LAA,10/01/18,Higher Crime,LEGAL AID FUND,GILLIAN H JONES QC,1384119:148758630,33163.61,Legal Aid Higher Crime,,
MOJ,LAA,31/01/18,Civil Representation,LEGAL AID FUND,GILL AKASTER LLP,1395015:3000000750270043,30126.48,Legal Aid Civil Representation,,
MOJ,LAA,24/01/18,Higher Crime,LEGAL AID FUND,GHP LEGAL,1389308:148828100,46440.85,Legal Aid Higher Crime,,
MOJ,LAA,24/01/18,Higher Crime,LEGAL AID FUND,GGP LAW LTD,1390487:148849947,29172.76,Legal Aid Higher Crime,,
MOJ,LAA,31/01/18,Higher Crime,LEGAL AID FUND,GERARD P HILLMAN,1397795:148878045,37185.70,Legal Aid Higher Crime,,
MOJ,LAA,24/01/18,Higher Crime,LEGAL AID FUND,GEPP & SONS SOLICITORS,1393151:148843208,79917.44,Legal Aid Higher Crime,,
MOJ,LAA,31/01/18,Higher Crime,LEGAL AID FUND,GEOFFREY FORRESTER & CO,1397652:148895016,58520.93,Legal Aid Higher Crime,,
MOJ,LAA,31/01/18,Lower Crime,LEGAL AID FUND,GEOFF WHITE & CO,1397110:148910880,38540.00,Legal Aid Lower Crime,,
MOJ,LAA,31/01/18,Civil Representation,LEGAL AID FUND,GEMMA KELLY,1396300:3000002994800008,33325.52,Legal Aid Civil Representation,,
MOJ,LAA,10/01/18,Civil Representation,LEGAL AID FUND,GEMMA CHAPMAN,1382358:3000001373550022,41083.20,Legal Aid Civil Representation,,
MOJ,LAA,11/01/18,Civil Representation,LEGAL AID FUND,GELDARDS LLP,1384405:2000000000005090,32124.54,Legal Aid Civil Representation,,
MOJ,LAA,24/01/18,Civil Representation,LEGAL AID FUND,GCA SOLICITORS,1393149:148846103,30348.36,Legal Aid Civil Representation,,
MOJ,LAA,31/01/18,Civil Representation,LEGAL AID FUND,GC SOLICITORS,1395880:3000001486850010,25909.69,Legal Aid Civil Representation,,
MOJ,LAA,10/01/18,Civil Representation,LEGAL AID FUND,GAYNOR HALL,1384025:3000002550200013,25898.40,Legal Aid Civil Representation,,
MOJ,LAA,24/01/18,Higher Crime,LEGAL AID FUND,GARRY GREEN,1391636:148828160,32933.15,Legal Aid Higher Crime,,
MOJ,LAA,31/01/18,Lower Crime,LEGAL AID FUND,GAMMON PIERCY & GAIGER,1394555:148910894,49868.00,Legal Aid Lower Crime,,
MOJ,LAA,17/01/18,Higher Crime,LEGAL AID FUND,GAMMON PIERCY & GAIGER,1386842:148805690,28971.88,Legal Aid Higher Crime,,
MOJ,LAA,24/01/18,Higher Crime,LEGAL AID FUND,GALBRAITH BRANLEY SOLICITORS,1393479:148827638,107574.07,Legal Aid Higher Crime,,
MOJ,LAA,31/01/18,Higher Crime,LEGAL AID FUND,GALBRAITH BRANLEY SOLICITORS,1399095:148893538,89975.11,Legal Aid Higher Crime,,
MOJ,LAA,31/01/18,Higher Crime,LEGAL AID FUND,GALBRAITH BRANLEY SOLICITORS,1399095:148894627,89975.11,Legal Aid Higher Crime,,
MOJ,LAA,31/01/18,Lower Crime,LEGAL AID FUND,GALBRAITH BRANLEY SOLICITORS,1399095:148910611,26699.00,Legal Aid Lower Crime,,
MOJ,LAA,17/01/18,Higher Crime,LEGAL AID FUND,G T STEWART LTD-ADVOCATE,1384581:148819694,28518.13,Legal Aid Higher Crime,,
MOJ,LAA,31/01/18,Higher Crime,LEGAL AID FUND,G T STEWART LTD,1397523:148878735,89975.11,Legal Aid Higher Crime,,
MOJ,LAA,31/01/18,Lower Crime,LEGAL AID FUND,G T STEWART LTD,1396377:148910656,43300.00,Legal Aid Lower Crime,,
MOJ,LAA,31/01/18,Lower Crime,LEGAL AID FUND,G T STEWART LTD,1397523:148911081,33029.00,Legal Aid Lower Crime,,
MOJ,LAA,31/01/18,Higher Crime,LEGAL AID FUND,G T STEWART LTD,1396377:148878894,27148.85,Legal Aid Higher Crime,,
MOJ,LAA,31/01/18,Lower Crime,LEGAL AID FUND,G T STEWART LTD,1397527:148911079,25209.00,Legal Aid Lower Crime,,
MOJ,LAA,09/01/18,Civil Representation,LEGAL AID FUND,FREETHS LLP,1380204:2000000000005055,53300.54,Legal Aid Civil Representation,,
MOJ,LAA,10/01/18,Civil Representation,LEGAL AID FUND,FREEMANS SOLICITORS,1381946:148741377,110747.18,Legal Aid Civil Representation,,
MOJ,LAA,24/01/18,Higher Crime,LEGAL AID FUND,FREEMANS SOLICITORS,1390583:148798371,33381.30,Legal Aid Higher Crime,,
MOJ,LAA,31/01/18,Lower Crime,LEGAL AID FUND,FREEMANS SOLICITORS,1394603:148910092,27900.00,Legal Aid Lower Crime,,
MOJ,LAA,10/01/18,Civil Representation,LEGAL AID FUND,FREEMANS SOLICITORS,1381946:148748796,-43200.00,Legal Aid Civil Representation,,
MOJ,LAA,10/01/18,Civil Representation,LEGAL AID FUND,FREEMANS SOLICITORS,1381946:148748793,-74489.70,Legal Aid Civil Representation,,
MOJ,LAA,17/01/18,Civil Representation,LEGAL AID FUND,FRANK T FEEHAN QC,1385799:3000001945170019,52973.40,Legal Aid Civil Representation,,
MOJ,LAA,17/01/18,Higher Crime,LEGAL AID FUND,FRANCIS J MCGRATH,1385594:148819695,37326.70,Legal Aid Higher Crime,,
MOJ,LAA,24/01/18,Higher Crime,LEGAL AID FUND,FRAME SMITH SOLICITORS,1389329:148865341,89975.11,Legal Aid Higher Crime,,
MOJ,LAA,31/01/18,Lower Crime,LEGAL AID FUND,FRAME SMITH SOLICITORS,1394067:148910258,32000.00,Legal Aid Lower Crime,,
MOJ,LAA,31/01/18,Legal Help,LEGAL AID FUND,FOUNTAIN SOLICITORS LTD,1396753:148908892,77300.00,Legal Aid Legal Help,,
MOJ,LAA,17/01/18,Higher Crime,LEGAL AID FUND,FOUNTAIN SOLICITORS LTD,1386751:148819623,35597.46,Legal Aid Higher Crime,,
MOJ,LAA,24/01/18,Higher Crime,LEGAL AID FUND,FORTIS ROSE SOLICITORS LTD,1391290:148849952,95707.01,Legal Aid Higher Crime,,
MOJ,LAA,31/01/18,Higher Crime,LEGAL AID FUND,FORTIS ROSE SOLICITORS LTD,1397900:148911903,35171.14,Legal Aid Higher Crime,,
MOJ,LAA,17/01/18,Higher Crime,LEGAL AID FUND,FORBES SOLICITORS,1385617:148820308,102195.36,Legal Aid Higher Crime,,
MOJ,LAA,31/01/18,Lower Crime,LEGAL AID FUND,FORBES SOLICITORS,1394087:148910213,37000.00,Legal Aid Lower Crime,,
MOJ,LAA,31/01/18,Lower Crime,LEGAL AID FUND,FMW LAW LTD,1395964:148910034,53300.00,Legal Aid Lower Crime,,
MOJ,LAA,17/01/18,Civil Representation,LEGAL AID FUND,FLEET SOLICITORS LLP,1384512:148794665,40242.59,Legal Aid Civil Representation,,
MOJ,LAA,17/01/18,Higher Crime,LEGAL AID FUND,FLAVIA KENYON,1386460:148797471,34179.70,Legal Aid Higher Crime,,
MOJ,LAA,24/01/18,Higher Crime,LEGAL AID FUND,FIELDINGS PORTER SOLICITORS,1392185:148842338,32079.31,Legal Aid Higher Crime,,
MOJ,LAA,10/01/18,Civil Representation,LEGAL AID FUND,FENTONS SOLICITORS LLP,1382080:148772506,27140.00,Legal Aid Civil Representation,,
MOJ,LAA,17/01/18,Higher Crime,LEGAL AID FUND,FEDON P KAZANTZIS,1387087:148797666,25037.98,Legal Aid Higher Crime,,
MOJ,LAA,24/01/18,Higher Crime,LEGAL AID FUND,FDR LAW,1392174:148842138,29664.55,Legal Aid Higher Crime,,
MOJ,LAA,31/01/18,Higher Crime,LEGAL AID FUND,FARNSWORTH MORGAN BAKHAT,1396337:148887049,107970.13,Legal Aid Higher Crime,,
MOJ,LAA,24/01/18,Higher Crime,LEGAL AID FUND,FARNSWORTH MORGAN BAKHAT,1390219:148835816,55729.02,Legal Aid Higher Crime,,
MOJ,LAA,17/01/18,Higher Crime,LEGAL AID FUND,FARADAYS SOLICITORS LTD,1385680:148796783,26464.44,Legal Aid Higher Crime,,
MOJ,LAA,31/01/18,Higher Crime,LEGAL AID FUND,FAIRVIEW SOLICITORS LTD,1395113:148913001,29664.55,Legal Aid Higher Crime,,
MOJ,LAA,31/01/18,Higher Crime,LEGAL AID FUND,FAIRVIEW SOLICITORS LTD,1395113:148886161,26297.65,Legal Aid Higher Crime,,
MOJ,LAA,31/01/18,Legal Help,LEGAL AID FUND,FADIGA & CO LTD,1396844:148909367,25931.00,Legal Aid Legal Help,,
MOJ,LAA,31/01/18,Civil Representation,LEGAL AID FUND,EWINGS & CO,1395547:3000001447460019,41053.25,Legal Aid Civil Representation,,
MOJ,LAA,31/01/18,Lower Crime,LEGAL AID FUND,EWINGS & CO,1395547:148910060,31300.00,Legal Aid Lower Crime,,
MOJ,LAA,17/01/18,Civil Representation,LEGAL AID FUND,EVERYS,1387638:3000000613940065,44711.03,Legal Aid Civil Representation,,
MOJ,LAA,31/01/18,Lower Crime,LEGAL AID FUND,EVANS HAYES BURNELL SOLICITORS LTD,1395610:148911319,27550.00,Legal Aid Lower Crime,,
MOJ,LAA,17/01/18,Civil Representation,LEGAL AID FUND,ESN SOLICITORS,1386500:148772730,50406.50,Legal Aid Civil Representation,,
MOJ,LAA,31/01/18,Lower Crime,LEGAL AID FUND,ERIC ROBINSON SOLICITORS,1395073:148910267,42600.00,Legal Aid Lower Crime,,
MOJ,LAA,24/01/18,Higher Crime,LEGAL AID FUND,ERIC ROBINSON SOLICITORS,1390974:148842483,26992.54,Legal Aid Higher Crime,,
MOJ,LAA,22/01/18,Civil Representation,LEGAL AID FUND,ENABLE LAW,1389009:2000000000005142,71679.71,Legal Aid Civil Representation,,
MOJ,LAA,17/01/18,Civil Representation,LEGAL AID FUND,ELIZABETH WILLSTEED,1387425:3000001658870018,25374.06,Legal Aid Civil Representation,,
MOJ,LAA,29/01/18,Civil Representation,LEGAL AID FUND,ELIZABETH MCGRATH QC,1393714:148201120,-26697.60,Legal Aid Civil Representation,,
MOJ,LAA,17/01/18,Higher Crime,LEGAL AID FUND,ELEANOR MAWREY,1385840:148795511,34960.01,Legal Aid Higher Crime,,
MOJ,LAA,31/01/18,Legal Help,LEGAL AID FUND,ELDER RAHIMI LIMITED,1399156:148909430,58349.00,Legal Aid Legal Help,,
MOJ,LAA,10/01/18,Higher Crime,LEGAL AID FUND,EDWINS SOLICITORS,1381848:148738268,95392.48,Legal Aid Higher Crime,,
MOJ,LAA,03/01/18,Higher Crime,LEGAL AID FUND,EDWINS SOLICITORS,1378452:148714360,67240.14,Legal Aid Higher Crime,,
MOJ,LAA,31/01/18,Civil Representation,LEGAL AID FUND,EDWARDS DUTHIE,1395060:3000001365430009,27845.30,Legal Aid Civil Representation,,
MOJ,LAA,17/01/18,Civil Representation,LEGAL AID FUND,EDWARD J GRIEVES,1385790:148794819,47432.15,Legal Aid Civil Representation,,
MOJ,LAA,17/01/18,Civil Representation,LEGAL AID FUND,EDWARD J GRIEVES,1385790:148795066,-31007.93,Legal Aid Civil Representation,,
MOJ,LAA,17/01/18,Civil Representation,LEGAL AID FUND,EDWARD HAYES LLP,1384812:3000002482760006,27896.40,Legal Aid Civil Representation,,
MOJ,LAA,31/01/18,Lower Crime,LEGAL AID FUND,EDWARD HAYES LLP,1397144:148910364,27200.00,Legal Aid Lower Crime,,
MOJ,LAA,31/01/18,Civil Representation,LEGAL AID FUND,EDWARD HARTE LLP,1394546:148919052,44805.93,Legal Aid Civil Representation,,
MOJ,LAA,10/01/18,Higher Crime,LEGAL AID FUND,EDWARD FAIL BRADSHAW & WATERSON,1381897:148776585,91020.90,Legal Aid Higher Crime,,
MOJ,LAA,31/01/18,Higher Crime,LEGAL AID FUND,EDWARD FAIL BRADSHAW & WATERSON,1394135:148894317,36444.24,Legal Aid Higher Crime,,
MOJ,LAA,31/01/18,Lower Crime,LEGAL AID FUND,EBR ATTRIDGE LLP,1396358:148910051,58100.00,Legal Aid Lower Crime,,
MOJ,LAA,31/01/18,Higher Crime,LEGAL AID FUND,EBR ATTRIDGE LLP,1397128:148886858,57920.72,Legal Aid Higher Crime,,
MOJ,LAA,31/01/18,Lower Crime,LEGAL AID FUND,EBR ATTRIDGE LLP,1396357:148910054,35400.00,Legal Aid Lower Crime,,
MOJ,LAA,31/01/18,Higher Crime,LEGAL AID FUND,EBR ATTRIDGE LLP,1397128:148878551,27999.20,Legal Aid Higher Crime,,
MOJ,LAA,31/01/18,Civil Representation,LEGAL AID FUND,EATON SMITH LLP,1397262:3000000476170057,67540.27,Legal Aid Civil Representation,,
MOJ,LAA,10/01/18,Civil Representation,LEGAL AID FUND,E J MOYLE,1384198:3000001248780023,35641.91,Legal Aid Civil Representation,,
MOJ,LAA,17/01/18,Higher Crime,LEGAL AID FUND,DYFED L THOMAS,1387845:148797425,34529.04,Legal Aid Higher Crime,,
MOJ,LAA,31/01/18,Legal Help,LEGAL AID FUND,DUNCAN LEWIS SOLICITORS  LTD,1394474:148890055,99000.00,Legal Aid Legal Help,,
MOJ,LAA,31/01/18,Legal Help,LEGAL AID FUND,DUNCAN LEWIS SOLICITORS  LTD,1394475:148890029,99000.00,Legal Aid Legal Help,,
MOJ,LAA,31/01/18,Legal Help,LEGAL AID FUND,DUNCAN LEWIS SOLICITORS  LTD,1394474:148890063,98000.00,Legal Aid Legal Help,,
MOJ,LAA,31/01/18,Legal Help,LEGAL AID FUND,DUNCAN LEWIS SOLICITORS  LTD,1394475:148890033,98000.00,Legal Aid Legal Help,,
MOJ,LAA,31/01/18,Legal Help,LEGAL AID FUND,DUNCAN LEWIS SOLICITORS  LTD,1394475:148890037,97000.00,Legal Aid Legal Help,,
MOJ,LAA,31/01/18,Legal Help,LEGAL AID FUND,DUNCAN LEWIS SOLICITORS  LTD,1394475:148890048,96000.00,Legal Aid Legal Help,,
MOJ,LAA,31/01/18,Legal Help,LEGAL AID FUND,DUNCAN LEWIS SOLICITORS  LTD,1394474:148890065,71400.00,Legal Aid Legal Help,,
MOJ,LAA,31/01/18,Lower Crime,LEGAL AID FUND,DUNCAN LEWIS SOLICITORS  LTD,1394474:148910078,60800.00,Legal Aid Lower Crime,,
MOJ,LAA,31/01/18,Legal Help,LEGAL AID FUND,DUNCAN LEWIS SOLICITORS  LTD,1397663:148909101,59300.00,Legal Aid Legal Help,,
MOJ,LAA,10/01/18,Higher Crime,LEGAL AID FUND,DUNCAN LEWIS SOLICITORS  LTD,1380524:148738141,49237.01,Legal Aid Higher Crime,,
MOJ,LAA,24/01/18,Civil Representation,LEGAL AID FUND,DUNCAN LEWIS SOLICITORS  LTD,1389373:148861463,36545.54,Legal Aid Civil Representation,,
MOJ,LAA,31/01/18,Lower Crime,LEGAL AID FUND,DUNCAN LEWIS SOLICITORS  LTD,1394475:148910622,32553.00,Legal Aid Lower Crime,,
MOJ,LAA,31/01/18,Civil Representation,LEGAL AID FUND,DUNCAN LEWIS SOLICITORS  LTD,1398293:3000001317760026,32502.78,Legal Aid Civil Representation,,
MOJ,LAA,31/01/18,Higher Crime,LEGAL AID FUND,DRUMMOND SOLICITORS LTD,1398816:148912192,45350.11,Legal Aid Higher Crime,,
MOJ,LAA,17/01/18,Higher Crime,LEGAL AID FUND,DRAYCOTT BROWNE LTD,1385414:148783601,35909.07,Legal Aid Higher Crime,,
MOJ,LAA,03/01/18,Higher Crime,LEGAL AID FUND,DPP LAW LTD,1379990:148720054,48585.56,Legal Aid Higher Crime,,
MOJ,LAA,31/01/18,Lower Crime,LEGAL AID FUND,DPP LAW LTD,1394897:148910066,28400.00,Legal Aid Lower Crime,,
MOJ,LAA,31/01/18,Lower Crime,LEGAL AID FUND,DPP LAW LTD,1394898:148910113,27800.00,Legal Aid Lower Crime,,
MOJ,LAA,31/01/18,Higher Crime,LEGAL AID FUND,DONALD RACE & NEWTON SOLICITORS,1396842:148872687,65087.64,Legal Aid Higher Crime,,
MOJ,LAA,10/01/18,Higher Crime,LEGAL AID FUND,DOMINIC LEWIS,1380451:148780416,72199.99,Legal Aid Higher Crime,,
MOJ,LAA,31/01/18,Civil Representation,LEGAL AID FUND,DODDS SOLICITORS LLP,1398774:3000001194650009,34007.40,Legal Aid Civil Representation,,
MOJ,LAA,31/01/18,Lower Crime,LEGAL AID FUND,DOBSONS,1394142:148910059,35000.00,Legal Aid Lower Crime,,
MOJ,LAA,17/01/18,Higher Crime,LEGAL AID FUND,DJMS SOLICITORS LTD,1386523:148782999,97616.83,Legal Aid Higher Crime,,
MOJ,LAA,24/01/18,Higher Crime,LEGAL AID FUND,DJMS SOLICITORS LTD,1390871:148827675,87277.62,Legal Aid Higher Crime,,
MOJ,LAA,31/01/18,Higher Crime,LEGAL AID FUND,DJMS SOLICITORS LTD,1397534:148886710,76075.57,Legal Aid Higher Crime,,
MOJ,LAA,31/01/18,Higher Crime,LEGAL AID FUND,DJMS SOLICITORS LTD,1397534:148886749,42456.12,Legal Aid Higher Crime,,
MOJ,LAA,10/01/18,Higher Crime,LEGAL AID FUND,DJMS SOLICITORS LTD,1380562:148738209,41947.61,Legal Aid Higher Crime,,
MOJ,LAA,31/01/18,Lower Crime,LEGAL AID FUND,DJMS SOLICITORS LTD,1397534:148910700,35448.00,Legal Aid Lower Crime,,
MOJ,LAA,17/01/18,Higher Crime,LEGAL AID FUND,DEXTER HENRY & CO,1388071:148820235,107574.07,Legal Aid Higher Crime,,
MOJ,LAA,17/01/18,Higher Crime,LEGAL AID FUND,DEVAS KEOGH JAMES SOLICITORS LTD,1388433:148820875,69906.69,Legal Aid Higher Crime,,
MOJ,LAA,03/01/18,Higher Crime,LEGAL AID FUND,DEREK J DUFFY,1379005:148709904,37283.76,Legal Aid Higher Crime,,
MOJ,LAA,31/01/18,Civil Representation,LEGAL AID FUND,DEIRDRE FOTTRELL QC,1395361:3000001580900031,45781.20,Legal Aid Civil Representation,,
MOJ,LAA,31/01/18,Lower Crime,LEGAL AID FUND,DE MAIDS SOLICITORS & ADVOCATES,1396461:148909977,30500.00,Legal Aid Lower Crime,,
MOJ,LAA,31/01/18,Higher Crime,LEGAL AID FUND,DDE LAW LTD,1397552:148872262,44636.06,Legal Aid Higher Crime,,
MOJ,LAA,03/01/18,Civil Representation,LEGAL AID FUND,DAVIS & SIMMONDS & DONAGHEY,1378284:148709041,26751.70,Legal Aid Civil Representation,,
MOJ,LAA,31/01/18,Lower Crime,LEGAL AID FUND,DAVIES & JONES SOLICITORS,1395980:148909976,25000.00,Legal Aid Lower Crime,,
MOJ,LAA,31/01/18,Higher Crime,LEGAL AID FUND,DAVID W HARRIS & CO,1395532:148912133,77084.18,Legal Aid Higher Crime,,
MOJ,LAA,31/01/18,Lower Crime,LEGAL AID FUND,DAVID SEDGWICK SOLICITORS LTD,1396750:148910406,36314.00,Legal Aid Lower Crime,,
MOJ,LAA,24/01/18,Higher Crime,LEGAL AID FUND,DAVID J BARNES,1390857:148835214,33481.60,Legal Aid Higher Crime,,
MOJ,LAA,24/01/18,Higher Crime,LEGAL AID FUND,DAVID GRAY LLP,1389928:148849641,27568.30,Legal Aid Higher Crime,,
MOJ,LAA,24/01/18,Higher Crime,LEGAL AID FUND,DAVID AKE & CO,1392890:148828030,66491.44,Legal Aid Higher Crime,,
MOJ,LAA,31/01/18,Lower Crime,LEGAL AID FUND,DAVID AKE & CO,1397945:148910774,25359.00,Legal Aid Lower Crime,,
MOJ,LAA,31/01/18,Lower Crime,LEGAL AID FUND,DARRYL INGRAM & CO,1395885:148910073,29000.00,Legal Aid Lower Crime,,
MOJ,LAA,24/01/18,Civil Representation,LEGAL AID FUND,DARREN F HOWE QC,1390141:3000002799780051,57380.40,Legal Aid Civil Representation,,
MOJ,LAA,31/01/18,Lower Crime,LEGAL AID FUND,DANIEL WOODMAN & CO LTD,1394936:148910299,25000.00,Legal Aid Lower Crime,,
MOJ,LAA,31/01/18,Higher Crime,LEGAL AID FUND,DANIEL A STEIN,1396659:148920923,102240.00,Legal Aid Higher Crime,,
MOJ,LAA,10/01/18,Civil Representation,LEGAL AID FUND,DAN SQUIRES,1380727:148734545,26284.50,Legal Aid Civil Representation,,
MOJ,LAA,31/01/18,Lower Crime,LEGAL AID FUND,DALTON HOLMES GRAY,1394108:148910650,30555.00,Legal Aid Lower Crime,,
MOJ,LAA,17/01/18,Civil Representation,LEGAL AID FUND,CYRUS R LARIZADEH,1385815:3000001912110018,40190.40,Legal Aid Civil Representation,,
MOJ,LAA,24/01/18,Higher Crime,LEGAL AID FUND,CUTTLE & CO,1393429:148828222,35597.46,Legal Aid Higher Crime,,
MOJ,LAA,10/01/18,Higher Crime,LEGAL AID FUND,CUNNINGHAMS LYTHGOE CAPLIN LTD,1380501:148773287,114895.71,Legal Aid Higher Crime,,
MOJ,LAA,10/01/18,Higher Crime,LEGAL AID FUND,CROWLEY & CO,1382189:148755979,59049.34,Legal Aid Higher Crime,,
MOJ,LAA,31/01/18,Lower Crime,LEGAL AID FUND,CROWE HUMBLE WESENCRAFT,1394965:148910146,50700.00,Legal Aid Lower Crime,,
MOJ,LAA,31/01/18,Higher Crime,LEGAL AID FUND,CROSS SOLICITORS,1394429:148878189,127029.30,Legal Aid Higher Crime,,
MOJ,LAA,17/01/18,Higher Crime,LEGAL AID FUND,CRIMINAL DEFENCE SOLICITORS,1386512:148798280,80984.28,Legal Aid Higher Crime,,
MOJ,LAA,17/01/18,Higher Crime,LEGAL AID FUND,CRIMINAL DEFENCE SOLICITORS,1386512:148821260,43496.47,Legal Aid Higher Crime,,
MOJ,LAA,31/01/18,Lower Crime,LEGAL AID FUND,CRIMINAL DEFENCE SOLICITORS,1396393:148910097,34600.00,Legal Aid Lower Crime,,
MOJ,LAA,31/01/18,Civil Representation,LEGAL AID FUND,CRANE & STAPLES,1398757:3000000734080023,39954.97,Legal Aid Civil Representation,,
MOJ,LAA,31/01/18,Civil Representation,LEGAL AID FUND,COVENT GARDEN FAMILY LAW SOLICITORS,1395262:148891630,33481.48,Legal Aid Civil Representation,,
MOJ,LAA,31/01/18,Civil Representation,LEGAL AID FUND,COVENT GARDEN FAMILY LAW SOLICITORS,1395262:148891712,-33402.70,Legal Aid Civil Representation,,
MOJ,LAA,10/01/18,Higher Crime,LEGAL AID FUND,CORKER BINNING,1381061:148771669,29068.25,Legal Aid Higher Crime,,
MOJ,LAA,24/01/18,Legal Help,LEGAL AID FUND,CORAM CHILDREN'S LEGAL CENTRE,1393435:148868804,79733.93,Legal Aid Legal Help,,
MOJ,LAA,17/01/18,Civil Representation,LEGAL AID FUND,CONROYS SOLICITORS LLP,1386758:3000001112370007,27558.52,Legal Aid Civil Representation,,
MOJ,LAA,31/01/18,Lower Crime,LEGAL AID FUND,CONNOR ROSS-BROWN SOLICITORS,1395268:148910379,35000.00,Legal Aid Lower Crime,,
MOJ,LAA,12/01/18,Civil Representation,LEGAL AID FUND,COMMUNITY LAW CLINIC SOLICITORS,1384409:2000000000005108,34565.83,Legal Aid Civil Representation,,
MOJ,LAA,24/01/18,Higher Crime,LEGAL AID FUND,COLIN C AYLOTT,1390462:148849729,27495.96,Legal Aid Higher Crime,,
MOJ,LAA,24/01/18,Civil Representation,LEGAL AID FUND,COLIN B MCCAUL,1389226:148816637,25036.20,Legal Aid Civil Representation,,
MOJ,LAA,10/01/18,Higher Crime,LEGAL AID FUND,COBLEYS SOLICITORS LTD,1380741:148738254,95707.01,Legal Aid Higher Crime,,
MOJ,LAA,24/01/18,Higher Crime,LEGAL AID FUND,COBLEYS SOLICITORS LTD,1389616:148835014,60025.36,Legal Aid Higher Crime,,
MOJ,LAA,24/01/18,Higher Crime,LEGAL AID FUND,COBLEYS SOLICITORS LTD,1391124:148849265,40698.02,Legal Aid Higher Crime,,
MOJ,LAA,31/01/18,Lower Crime,LEGAL AID FUND,COBAINS SOLICITORS,1394464:148910230,30000.00,Legal Aid Lower Crime,,
MOJ,LAA,31/01/18,Legal Help,LEGAL AID FUND,CMHT SOLICITORS LLP,1396019:148909134,48622.00,Legal Aid Legal Help,,
MOJ,LAA,31/01/18,Civil Representation,LEGAL AID FUND,CLIVE A BAKER,1397013:148860647,46486.80,Legal Aid Civil Representation,,
MOJ,LAA,17/01/18,Higher Crime,LEGAL AID FUND,CLIFFORD JOHNSTON & CO,1385406:148782974,36696.84,Legal Aid Higher Crime,,
MOJ,LAA,24/01/18,Higher Crime,LEGAL AID FUND,CLARKSON HIRST SOLICITORS LTD,1390499:148827814,96755.87,Legal Aid Higher Crime,,
MOJ,LAA,31/01/18,Civil Representation,LEGAL AID FUND,CLARKSON HIRST SOLICITORS LTD,1396730:3000001984120024,28468.16,Legal Aid Civil Representation,,
MOJ,LAA,17/01/18,Higher Crime,LEGAL AID FUND,CLARKE KIERNAN LLP,1385985:148783106,89975.11,Legal Aid Higher Crime,,
MOJ,LAA,24/01/18,Higher Crime,LEGAL AID FUND,CLARE R THOMAS,1391940:148846535,48440.00,Legal Aid Higher Crime,,
MOJ,LAA,10/01/18,Civil Representation,LEGAL AID FUND,CLARE L GARNHAM,1384076:3000001305140022,59430.00,Legal Aid Civil Representation,,
MOJ,LAA,10/01/18,Higher Crime,LEGAL AID FUND,CLAIRE SUZANNE DAVIES,1380989:148756326,32160.00,Legal Aid Higher Crime,,
MOJ,LAA,31/01/18,Civil Representation,LEGAL AID FUND,CLAIRE MURDEN,1393956:3000002260990011,45619.20,Legal Aid Civil Representation,,
MOJ,LAA,31/01/18,Lower Crime,LEGAL AID FUND,CJH GREENHILL COOPER SOLICITORS,1394497:148910006,40000.00,Legal Aid Lower Crime,,
MOJ,LAA,31/01/18,Legal Help,LEGAL AID FUND,CJCH SOLICITORS,1398502:148909937,42183.00,Legal Aid Legal Help,,
MOJ,LAA,17/01/18,Higher Crime,LEGAL AID FUND,CITY CRIMINAL LAWYERS LTD,1388108:148783385,65179.08,Legal Aid Higher Crime,,
MOJ,LAA,24/01/18,Higher Crime,LEGAL AID FUND,CHRISTOPHER M HENLEY,1390457:148838599,96000.00,Legal Aid Higher Crime,,
MOJ,LAA,17/01/18,Civil Representation,LEGAL AID FUND,CHRISTOPHER HAMES,1388209:3000001266630014,38858.84,Legal Aid Civil Representation,,
MOJ,LAA,03/01/18,Higher Crime,LEGAL AID FUND,CHRISTOB SOLICITORS,1378120:148720717,89645.06,Legal Aid Higher Crime,,
MOJ,LAA,10/01/18,Higher Crime,LEGAL AID FUND,CHOPRA & GILL SOLICITORS,1381639:148758322,64997.21,Legal Aid Higher Crime,,
MOJ,LAA,31/01/18,Higher Crime,LEGAL AID FUND,CHIVERS SOLICITORS,1394493:148878348,78762.24,Legal Aid Higher Crime,,
MOJ,LAA,10/01/18,Higher Crime,LEGAL AID FUND,CHIVERS SOLICITORS,1381819:148776662,64681.01,Legal Aid Higher Crime,,
MOJ,LAA,31/01/18,Higher Crime,LEGAL AID FUND,CHIVERS SOLICITORS,1397911:148913225,37791.76,Legal Aid Higher Crime,,
MOJ,LAA,17/01/18,Higher Crime,LEGAL AID FUND,CHIVERS SOLICITORS,1387540:148821263,25393.50,Legal Aid Higher Crime,,
MOJ,LAA,31/01/18,Civil Representation,LEGAL AID FUND,CHILD LAW PARTNERSHIP LTD,1395729:3000001309130008,46522.49,Legal Aid Civil Representation,,
MOJ,LAA,31/01/18,Higher Crime,LEGAL AID FUND,CHELIAN LAW SOLICITORS,1394617:148871779,89975.11,Legal Aid Higher Crime,,
MOJ,LAA,31/01/18,Higher Crime,LEGAL AID FUND,CHARTER SOLICITORS,1398807:148886158,45172.62,Legal Aid Higher Crime,,
MOJ,LAA,17/01/18,Higher Crime,LEGAL AID FUND,CHARTER SOLICITORS,1387407:148820169,45089.76,Legal Aid Higher Crime,,
MOJ,LAA,24/01/18,Higher Crime,LEGAL AID FUND,CHARLES G LANDER,1390104:148827439,26263.68,Legal Aid Higher Crime,,
MOJ,LAA,31/01/18,Civil Representation,LEGAL AID FUND,CHARLES G HYDE QC,1395804:3000001587560022,30812.40,Legal Aid Civil Representation,,
MOJ,LAA,24/01/18,Higher Crime,LEGAL AID FUND,CHARLES A BOTT QC,1390458:148869334,143680.01,Legal Aid Higher Crime,,
MOJ,LAA,31/01/18,Higher Crime,LEGAL AID FUND,CENTURION LAW LTD,1393821:148878107,31877.58,Legal Aid Higher Crime,,
MOJ,LAA,31/01/18,Higher Crime,LEGAL AID FUND,CASTLE SOLICITORS LTD,1394687:148894058,39059.58,Legal Aid Higher Crime,,
MOJ,LAA,24/01/18,Higher Crime,LEGAL AID FUND,CARTWRIGHT KING LTD-ADVOCATE,1392706:148827765,30662.88,Legal Aid Higher Crime,,
MOJ,LAA,24/01/18,Higher Crime,LEGAL AID FUND,CARTWRIGHT KING LTD-ADVOCATE,1392706:148827907,28806.48,Legal Aid Higher Crime,,
MOJ,LAA,10/01/18,Higher Crime,LEGAL AID FUND,CARTWRIGHT KING LTD,1380345:148758850,107970.13,Legal Aid Higher Crime,,
MOJ,LAA,10/01/18,Higher Crime,LEGAL AID FUND,CARTWRIGHT KING LTD,1380598:148745050,56583.63,Legal Aid Higher Crime,,
MOJ,LAA,31/01/18,Legal Help,LEGAL AID FUND,CARTWRIGHT KING LTD,1395442:148909533,51657.00,Legal Aid Legal Help,,
MOJ,LAA,31/01/18,Lower Crime,LEGAL AID FUND,CARTER OSBORNE LTD,1398338:148910495,65464.00,Legal Aid Lower Crime,,
MOJ,LAA,31/01/18,Higher Crime,LEGAL AID FUND,CARTER MOORE SOLICITORS LTD,1396379:148872158,48041.10,Legal Aid Higher Crime,,
MOJ,LAA,17/01/18,Higher Crime,LEGAL AID FUND,CARSON KAYE SOLICITORS,1387316:148790197,82147.75,Legal Aid Higher Crime,,
MOJ,LAA,03/01/18,Higher Crime,LEGAL AID FUND,CARSON KAYE SOLICITORS,1378130:148720611,31851.29,Legal Aid Higher Crime,,
MOJ,LAA,31/01/18,Higher Crime,LEGAL AID FUND,CARSON KAYE SOLICITORS,1398824:148878316,25157.98,Legal Aid Higher Crime,,
MOJ,LAA,17/01/18,Higher Crime,LEGAL AID FUND,CARSON KAYE SOLICITORS,1387316:148821082,-25214.17,Legal Aid Higher Crime,,
MOJ,LAA,31/01/18,Lower Crime,LEGAL AID FUND,CARRINGTONS SOLICITORS,1396405:148910498,172012.00,Legal Aid Lower Crime,,
MOJ,LAA,31/01/18,Lower Crime,LEGAL AID FUND,CARR & CO,1397265:148910178,32800.00,Legal Aid Lower Crime,,
MOJ,LAA,17/01/18,Civil Representation,LEGAL AID FUND,CAROLINE ELFORD,1386660:3000002116040030,41783.40,Legal Aid Civil Representation,,
MOJ,LAA,17/01/18,Civil Representation,LEGAL AID FUND,CARIS ROBSON,1388761:3000000865490015,35761.64,Legal Aid Civil Representation,,
MOJ,LAA,31/01/18,Higher Crime,LEGAL AID FUND,CANTARIS LOCKE SOLICITORS,1397300:148886437,89975.11,Legal Aid Higher Crime,,
MOJ,LAA,03/01/18,Civil Representation,LEGAL AID FUND,CAMERON JONES HUSSELL & HOWE,1379396:3000002091880018,31500.00,Legal Aid Civil Representation,,
MOJ,LAA,03/01/18,Civil Representation,LEGAL AID FUND,CAMERON JONES HUSSELL & HOWE,1379396:3000001956540011,28874.02,Legal Aid Civil Representation,,
MOJ,LAA,17/01/18,Civil Representation,LEGAL AID FUND,CAMERON JONES HUSSELL & HOWE,1388058:3000001504220008,25446.05,Legal Aid Civil Representation,,
MOJ,LAA,31/01/18,Higher Crime,LEGAL AID FUND,CAMBROSE & PARTNERS LTD,1398873:148913710,79940.52,Legal Aid Higher Crime,,
MOJ,LAA,24/01/18,Higher Crime,LEGAL AID FUND,CAMBROSE & PARTNERS LTD,1391459:148827997,51974.26,Legal Aid Higher Crime,,
MOJ,LAA,31/01/18,Higher Crime,LEGAL AID FUND,CAIRNS L D NELSON QC,1395296:148883234,112440.00,Legal Aid Higher Crime,,
MOJ,LAA,17/01/18,Higher Crime,LEGAL AID FUND,C W BOOTH & CO,1388804:148805951,39263.80,Legal Aid Higher Crime,,
MOJ,LAA,31/01/18,Higher Crime,LEGAL AID FUND,BYRNE & PARTNERS LLP,1394450:148882334,50928.60,Legal Aid Higher Crime,,
MOJ,LAA,31/01/18,Higher Crime,LEGAL AID FUND,BYRNE & PARTNERS LLP,1394450:148891869,42578.09,Legal Aid Higher Crime,,
MOJ,LAA,31/01/18,Higher Crime,LEGAL AID FUND,BYRNE & PARTNERS LLP,1394450:148882337,29403.42,Legal Aid Higher Crime,,
MOJ,LAA,31/01/18,Legal Help,LEGAL AID FUND,BUTLER & CO,1396410:148908921,36500.00,Legal Aid Legal Help,,
MOJ,LAA,17/01/18,Higher Crime,LEGAL AID FUND,BURTON COPELAND LLP,1385408:148790569,71545.90,Legal Aid Higher Crime,,
MOJ,LAA,31/01/18,Lower Crime,LEGAL AID FUND,BURTON COPELAND LLP,1399152:148910856,42022.00,Legal Aid Lower Crime,,
MOJ,LAA,31/01/18,Higher Crime,LEGAL AID FUND,BURTON COPELAND LLP,1399152:148894250,25573.99,Legal Aid Higher Crime,,
MOJ,LAA,24/01/18,Higher Crime,LEGAL AID FUND,BURRELL JENKINS SOLICITORS,1390225:148828019,51337.19,Legal Aid Higher Crime,,
MOJ,LAA,31/01/18,Legal Help,LEGAL AID FUND,BURKE NIAZI  LTD,1396428:148890076,99000.00,Legal Aid Legal Help,,
MOJ,LAA,31/01/18,Higher Crime,LEGAL AID FUND,BULLIVANT LAW LTD,1396327:148878878,107970.13,Legal Aid Higher Crime,,
MOJ,LAA,31/01/18,Lower Crime,LEGAL AID FUND,BULLIVANT LAW LTD,1396327:148910041,31600.00,Legal Aid Lower Crime,,
MOJ,LAA,31/01/18,Higher Crime,LEGAL AID FUND,BROOKLYN SOLICITORS LTD,1394912:148877965,51822.30,Legal Aid Higher Crime,,
MOJ,LAA,03/01/18,Civil Representation,LEGAL AID FUND,BROMLEYS SOLICITORS LLP,1379464:3000000839710018,27337.65,Legal Aid Civil Representation,,
MOJ,LAA,31/01/18,Legal Help,LEGAL AID FUND,BRIGHTON HOUSING TRUST,1398264:148909678,27839.00,Legal Aid Legal Help,,
MOJ,LAA,31/01/18,Lower Crime,LEGAL AID FUND,BREYDONS SOLICITORS LTD,1398414:148911091,33474.00,Legal Aid Lower Crime,,
MOJ,LAA,31/01/18,Civil Representation,LEGAL AID FUND,BRENDAN FLEMING SOLICITORS,1396014:3000000810370014,42344.78,Legal Aid Civil Representation,,
MOJ,LAA,31/01/18,Higher Crime,LEGAL AID FUND,BRENDA CAMPBELL,1396592:148921089,46720.00,Legal Aid Higher Crime,,
MOJ,LAA,31/01/18,Higher Crime,LEGAL AID FUND,BRADY EASTWOOD PIERCE & STEWART,1395058:148871698,89975.11,Legal Aid Higher Crime,,
MOJ,LAA,31/01/18,Lower Crime,LEGAL AID FUND,BRADY EASTWOOD PIERCE & STEWART,1395058:148910634,30409.00,Legal Aid Lower Crime,,
MOJ,LAA,17/01/18,Civil Representation,LEGAL AID FUND,BOYS & MAUGHAN,1386882:148660465,-28557.78,Legal Aid Civil Representation,,
MOJ,LAA,03/01/18,Higher Crime,LEGAL AID FUND,BOWDEN JONES LTD ABS,1378043:148714840,32408.09,Legal Aid Higher Crime,,
MOJ,LAA,10/01/18,Higher Crime,LEGAL AID FUND,BOOTS STARKE GOACHER SOLICITORS,1380475:148776159,83497.99,Legal Aid Higher Crime,,
MOJ,LAA,24/01/18,Higher Crime,LEGAL AID FUND,BOOTS STARKE GOACHER SOLICITORS,1389323:148843046,61039.58,Legal Aid Higher Crime,,
MOJ,LAA,24/01/18,Higher Crime,LEGAL AID FUND,BOOTS STARKE GOACHER SOLICITORS,1389323:148835910,27618.34,Legal Aid Higher Crime,,
MOJ,LAA,31/01/18,Lower Crime,LEGAL AID FUND,BOND JOSEPH,1394926:148910878,90416.00,Legal Aid Lower Crime,,
MOJ,LAA,31/01/18,Lower Crime,LEGAL AID FUND,BOBBETTS MACKAN,1395468:148910294,42000.00,Legal Aid Lower Crime,,
MOJ,LAA,31/01/18,Higher Crime,LEGAL AID FUND,BOB A D SASTRY,1394003:148876627,63240.00,Legal Aid Higher Crime,,
MOJ,LAA,31/01/18,Lower Crime,LEGAL AID FUND,BLACKWELLS,1395386:148910180,54100.00,Legal Aid Lower Crime,,
MOJ,LAA,17/01/18,Higher Crime,LEGAL AID FUND,BLACKFORDS LLP,1386927:148820303,105857.75,Legal Aid Higher Crime,,
MOJ,LAA,10/01/18,Higher Crime,LEGAL AID FUND,BLACKFORDS LLP,1381910:148776598,64145.00,Legal Aid Higher Crime,,
MOJ,LAA,17/01/18,Higher Crime,LEGAL AID FUND,BLACKFORDS LLP,1386927:148782506,56827.64,Legal Aid Higher Crime,,
MOJ,LAA,31/01/18,Higher Crime,LEGAL AID FUND,BLACKFORDS LLP,1394545:148921286,54680.00,Legal Aid Higher Crime,,
MOJ,LAA,31/01/18,Lower Crime,LEGAL AID FUND,BLACKFORDS LLP,1394545:148910593,54610.00,Legal Aid Lower Crime,,
MOJ,LAA,17/01/18,Higher Crime,LEGAL AID FUND,BLACKFORDS LLP,1386927:148797333,44960.52,Legal Aid Higher Crime,,
MOJ,LAA,10/01/18,Higher Crime,LEGAL AID FUND,BLACKFORDS LLP,1381910:148758704,37296.80,Legal Aid Higher Crime,,
MOJ,LAA,17/01/18,Higher Crime,LEGAL AID FUND,BLACKFORDS LLP,1386927:148794184,33193.64,Legal Aid Higher Crime,,
MOJ,LAA,17/01/18,Civil Representation,LEGAL AID FUND,BLACKFORDS LLP,1386841:148823504,26096.72,Legal Aid Civil Representation,,
MOJ,LAA,31/01/18,Higher Crime,LEGAL AID FUND,BLACKFORDS LLP,1394545:148919709,25906.32,Legal Aid Higher Crime,,
MOJ,LAA,17/01/18,Higher Crime,LEGAL AID FUND,BIVONAS LLP,1388797:148825021,68954.55,Legal Aid Higher Crime,,
MOJ,LAA,31/01/18,Legal Help,LEGAL AID FUND,BISON SOLICITORS LTD,1398060:148890373,99000.00,Legal Aid Legal Help,,
MOJ,LAA,31/01/18,Lower Crime,LEGAL AID FUND,BISHOP & LIGHT SOLICITORS LTD,1395053:148910261,29300.00,Legal Aid Lower Crime,,
MOJ,LAA,31/01/18,Lower Crime,LEGAL AID FUND,BIRDS SOLICITORS LTD,1395843:148910056,72000.00,Legal Aid Lower Crime,,
MOJ,LAA,10/01/18,Higher Crime,LEGAL AID FUND,BIRDS SOLICITORS LTD,1381065:148738951,42539.35,Legal Aid Higher Crime,,
MOJ,LAA,31/01/18,Higher Crime,LEGAL AID FUND,BIRD & CO SOLICITORS LLP,1398342:148878667,50528.75,Legal Aid Higher Crime,,
MOJ,LAA,17/01/18,Higher Crime,LEGAL AID FUND,BIRD & CO SOLICITORS LLP,1385129:148805540,28813.57,Legal Aid Higher Crime,,
MOJ,LAA,17/01/18,Civil Representation,LEGAL AID FUND,BIRCHALL BLACKBURN SOLICITORS,1388785:3000001231630026,29413.80,Legal Aid Civil Representation,,
MOJ,LAA,31/01/18,Legal Help,LEGAL AID FUND,BINDMANS LLP,1394076:148908991,68300.00,Legal Aid Legal Help,,
MOJ,LAA,12/01/18,Civil Representation,LEGAL AID FUND,BHATT MURPHY SOLICITORS,1384425:2000000000005111,47162.64,Legal Aid Civil Representation,,
MOJ,LAA,31/01/18,Lower Crime,LEGAL AID FUND,BHATIA BEST LTD,1398405:148909982,89800.00,Legal Aid Lower Crime,,
MOJ,LAA,31/01/18,Lower Crime,LEGAL AID FUND,BHATIA BEST LTD,1398397:148909986,40900.00,Legal Aid Lower Crime,,
MOJ,LAA,17/01/18,Civil Representation,LEGAL AID FUND,BG SOLICITORS LLP,1387560:3000002433850020,32067.90,Legal Aid Civil Representation,,
MOJ,LAA,24/01/18,Civil Representation,LEGAL AID FUND,BEVIRS,1390645:148839939,-25577.82,Legal Aid Civil Representation,,
MOJ,LAA,31/01/18,Lower Crime,LEGAL AID FUND,BESWICKS SOLICITORS LLP,1396011:148910983,44528.00,Legal Aid Lower Crime,,
MOJ,LAA,03/01/18,Higher Crime,LEGAL AID FUND,BERRI'S LAW,1378295:148719913,42740.51,Legal Aid Higher Crime,,
MOJ,LAA,10/01/18,Higher Crime,LEGAL AID FUND,BERNARD RICHMOND QC,1383396:148744780,43050.64,Legal Aid Higher Crime,,
MOJ,LAA,31/01/18,Higher Crime,LEGAL AID FUND,BERNARD G TETLOW QC,1398685:148913402,26014.82,Legal Aid Higher Crime,,
MOJ,LAA,17/01/18,Lower Crime,LEGAL AID FUND,BENJAMIN KEITH,1384675:148794497,33561.00,Legal Aid Lower Crime,,
MOJ,LAA,10/01/18,Higher Crime,LEGAL AID FUND,BENJAMIN D J SUMMERS,1382364:148758097,38399.64,Legal Aid Higher Crime,,
MOJ,LAA,10/01/18,Civil Representation,LEGAL AID FUND,BEN MANSFIELD,1382945:3000002321250008,26699.02,Legal Aid Civil Representation,,
MOJ,LAA,31/01/18,Lower Crime,LEGAL AID FUND,BELMORES SOLICITORS LTD,1396399:148910538,31373.00,Legal Aid Lower Crime,,
MOJ,LAA,31/01/18,Higher Crime,LEGAL AID FUND,BELL LAMB & JOYNSON,1394478:148912662,43351.18,Legal Aid Higher Crime,,
MOJ,LAA,24/01/18,Higher Crime,LEGAL AID FUND,BELL LAMB & JOYNSON,1389376:148849051,29664.55,Legal Aid Higher Crime,,
MOJ,LAA,31/01/18,Lower Crime,LEGAL AID FUND,BDH SOLICITORS LTD,1397183:148910223,27400.00,Legal Aid Lower Crime,,
MOJ,LAA,31/01/18,Lower Crime,LEGAL AID FUND,BASSETS,1394125:148910246,30400.00,Legal Aid Lower Crime,,
MOJ,LAA,31/01/18,Lower Crime,LEGAL AID FUND,BARRICELLA HUGHES MARCHANT,1396709:148910549,27054.00,Legal Aid Lower Crime,,
MOJ,LAA,31/01/18,Legal Help,LEGAL AID FUND,BARNES HARRILD & DYER,1396915:148909786,36561.00,Legal Aid Legal Help,,
MOJ,LAA,24/01/18,Higher Crime,LEGAL AID FUND,BARK & CO,1392180:148828224,72275.35,Legal Aid Higher Crime,,
MOJ,LAA,03/01/18,Higher Crime,LEGAL AID FUND,BARK & CO,1379442:148709790,41809.46,Legal Aid Higher Crime,,
MOJ,LAA,31/01/18,Higher Crime,LEGAL AID FUND,BARK & CO,1397245:148920382,40959.41,Legal Aid Higher Crime,,
MOJ,LAA,31/01/18,Civil Representation,LEGAL AID FUND,BANSA SINGH HAYER,1396283:3000000528290023,32615.43,Legal Aid Civil Representation,,
MOJ,LAA,31/01/18,Legal Help,LEGAL AID FUND,BANKFIELD HEATH SOLICITORS,1397276:148909782,26222.00,Legal Aid Legal Help,,
MOJ,LAA,31/01/18,Lower Crime,LEGAL AID FUND,BAINS SOLICITORS,1394422:148910494,31714.00,Legal Aid Lower Crime,,
MOJ,LAA,24/01/18,Higher Crime,LEGAL AID FUND,BAILEY NICHOLSON GRAYSON,1389402:148865211,99168.54,Legal Aid Higher Crime,,
MOJ,LAA,31/01/18,Lower Crime,LEGAL AID FUND,BAILEY NICHOLSON GRAYSON,1394423:148910039,35400.00,Legal Aid Lower Crime,,
MOJ,LAA,24/01/18,Higher Crime,LEGAL AID FUND,ASHMANS SOLICITORS LTD,1392230:148864930,41779.15,Legal Aid Higher Crime,,
MOJ,LAA,03/01/18,Higher Crime,LEGAL AID FUND,ASHMANS SOLICITORS LTD,1378450:148714254,35353.84,Legal Aid Higher Crime,,
MOJ,LAA,03/01/18,Higher Crime,LEGAL AID FUND,ASGHAR & CO,1379063:148720156,89975.11,Legal Aid Higher Crime,,
MOJ,LAA,03/01/18,Higher Crime,LEGAL AID FUND,ARANI SOLICITORS,1379395:148719880,107970.13,Legal Aid Higher Crime,,
MOJ,LAA,31/01/18,Legal Help,LEGAL AID FUND,APPLEMAN LEGAL,1398047:148909934,35185.00,Legal Aid Legal Help,,
MOJ,LAA,17/01/18,Higher Crime,LEGAL AID FUND,APPLEBY SHAW LTD,1387329:148790475,105857.75,Legal Aid Higher Crime,,
MOJ,LAA,10/01/18,Higher Crime,LEGAL AID FUND,APEX LAWYERS LTD,1380620:148743914,52630.38,Legal Aid Higher Crime,,
MOJ,LAA,31/01/18,Civil Representation,LEGAL AID FUND,ANTHONY MORRIS LTD,1398340:3000001105200035,48705.46,Legal Aid Civil Representation,,
MOJ,LAA,12/01/18,Civil Representation,LEGAL AID FUND,ANTHONY GOLD SOLICITORS,1384424:2000000000005105,53761.02,Legal Aid Civil Representation,,
MOJ,LAA,24/01/18,Higher Crime,LEGAL AID FUND,ANGELA TAYLOR CRIMINAL SOLICITORS,1389332:148827698,91211.45,Legal Aid Higher Crime,,
MOJ,LAA,31/01/18,Higher Crime,LEGAL AID FUND,ANGELA TAYLOR CRIMINAL SOLICITORS,1394071:148911974,41930.21,Legal Aid Higher Crime,,
MOJ,LAA,31/01/18,Lower Crime,LEGAL AID FUND,ANGELA PORTER SOLICITORS,1395870:148910912,41151.00,Legal Aid Lower Crime,,
MOJ,LAA,10/01/18,Higher Crime,LEGAL AID FUND,ANEURIN BREWER,1382137:148738460,34237.56,Legal Aid Higher Crime,,
MOJ,LAA,24/01/18,Higher Crime,LEGAL AID FUND,ANDREW THOMAS QC,1389497:148840074,96000.00,Legal Aid Higher Crime,,
MOJ,LAA,31/01/18,Lower Crime,LEGAL AID FUND,ANDREW STORCH SOLICITORS LTD,1397198:148910278,35100.00,Legal Aid Lower Crime,,
MOJ,LAA,24/01/18,Higher Crime,LEGAL AID FUND,ANDREW P NUTTALL,1389832:148846352,48440.00,Legal Aid Higher Crime,,
MOJ,LAA,17/01/18,Civil Representation,LEGAL AID FUND,ANDREW K BAGCHI QC,1385519:3000002994800007,36352.80,Legal Aid Civil Representation,,
MOJ,LAA,24/01/18,Higher Crime,LEGAL AID FUND,ANDREW J O'BYRNE QC,1392413:148867857,96000.00,Legal Aid Higher Crime,,
MOJ,LAA,24/01/18,Higher Crime,LEGAL AID FUND,ANDREW J HALL QC,1391189:148865630,30303.26,Legal Aid Higher Crime,,
MOJ,LAA,31/01/18,Civil Representation,LEGAL AID FUND,ANDREW BROOK  SOLICITORS,1395222:3000001945170020,39701.08,Legal Aid Civil Representation,,
MOJ,LAA,17/01/18,Higher Crime,LEGAL AID FUND,AMOSU ROBINSHAW LTD,1385911:148820603,31089.12,Legal Aid Higher Crime,,
MOJ,LAA,17/01/18,Civil Representation,LEGAL AID FUND,AMANDA C A MILLER,1386386:3000001472600025,43632.00,Legal Aid Civil Representation,,
MOJ,LAA,17/01/18,Higher Crime,LEGAL AID FUND,ALPHA SOLICITORS & ADVOCATES,1386319:148782707,89975.11,Legal Aid Higher Crime,,
MOJ,LAA,10/01/18,Higher Crime,LEGAL AID FUND,ALPHA SOLICITORS & ADVOCATES,1383743:148738396,32454.00,Legal Aid Higher Crime,,
MOJ,LAA,26/01/18,Civil Representation,LEGAL AID FUND,ALPHA ROCKS SOLICITORS-INTERVENTION,1393709:2000000000005179,130395.42,Legal Aid Civil Representation,,
MOJ,LAA,31/01/18,Lower Crime,LEGAL AID FUND,ALLEN HOOLE SOLICITORS,1397136:148910304,41500.00,Legal Aid Lower Crime,,
MOJ,LAA,31/01/18,Lower Crime,LEGAL AID FUND,ALLEN HOOLE SOLICITORS,1394656:148911395,30316.00,Legal Aid Lower Crime,,
MOJ,LAA,31/01/18,Lower Crime,LEGAL AID FUND,ALLEN HOOLE SOLICITORS,1398027:148910296,28600.00,Legal Aid Lower Crime,,
MOJ,LAA,17/01/18,Civil Representation,LEGAL AID FUND,ALISON TRENT & CO,1386245:148817152,61199.61,Legal Aid Civil Representation,,
MOJ,LAA,17/01/18,Civil Representation,LEGAL AID FUND,ALISON TRENT & CO,1386245:148816197,55611.43,Legal Aid Civil Representation,,
MOJ,LAA,17/01/18,Civil Representation,LEGAL AID FUND,ALISON TRENT & CO,1386245:148779545,29440.92,Legal Aid Civil Representation,,
MOJ,LAA,17/01/18,Civil Representation,LEGAL AID FUND,ALISON TRENT & CO,1386245:148817238,-31544.47,Legal Aid Civil Representation,,
MOJ,LAA,17/01/18,Civil Representation,LEGAL AID FUND,ALISON S GRIEF,1388206:3000001498170013,40176.00,Legal Aid Civil Representation,,
MOJ,LAA,17/01/18,Civil Representation,LEGAL AID FUND,ALISON M PADFIELD,1385752:148794666,27000.00,Legal Aid Civil Representation,,
MOJ,LAA,17/01/18,Civil Representation,LEGAL AID FUND,ALISON M PADFIELD,1385752:148794668,27000.00,Legal Aid Civil Representation,,
MOJ,LAA,10/01/18,Higher Crime,LEGAL AID FUND,ALIA K A MOHAMMAD,1381442:148780434,32160.00,Legal Aid Higher Crime,,
MOJ,LAA,31/01/18,Higher Crime,LEGAL AID FUND,ALIA K A MOHAMMAD,1396037:148921091,32160.00,Legal Aid Higher Crime,,
MOJ,LAA,31/01/18,Higher Crime,LEGAL AID FUND,ALEXANDER UPTON,1395805:148883049,80920.01,Legal Aid Higher Crime,,
MOJ,LAA,24/01/18,Higher Crime,LEGAL AID FUND,ALEXANDER BENNETT,1390734:148849666,61165.43,Legal Aid Higher Crime,,
MOJ,LAA,31/01/18,Lower Crime,LEGAL AID FUND,ALBIN & CO LTD,1395904:148910280,30000.00,Legal Aid Lower Crime,,
MOJ,LAA,10/01/18,Higher Crime,LEGAL AID FUND,ALASTAIR S K EDIE,1383163:148751429,32678.02,Legal Aid Higher Crime,,
MOJ,LAA,17/01/18,Higher Crime,LEGAL AID FUND,AHMED & CO,1388434:148782463,89487.62,Legal Aid Higher Crime,,
MOJ,LAA,10/01/18,Higher Crime,LEGAL AID FUND,ADVICE WISE SOLICITORS LTD,1381779:148744693,62279.19,Legal Aid Higher Crime,,
MOJ,LAA,17/01/18,Higher Crime,LEGAL AID FUND,ADVICE WISE SOLICITORS LTD,1387201:148782588,34162.34,Legal Aid Higher Crime,,
MOJ,LAA,17/01/18,Civil Representation,LEGAL AID FUND,ADRIAN R T PIDDUCK,1385432:3000001150710032,35649.72,Legal Aid Civil Representation,,
MOJ,LAA,17/01/18,Higher Crime,LEGAL AID FUND,ADRIAN M WATERMAN QC,1388183:148795510,69720.00,Legal Aid Higher Crime,,
MOJ,LAA,17/01/18,Higher Crime,LEGAL AID FUND,ADH LAW,1386539:148819977,89487.62,Legal Aid Higher Crime,,
MOJ,LAA,17/01/18,Higher Crime,LEGAL AID FUND,ADAMSON SOLICITORS,1387406:148820299,106261.02,Legal Aid Higher Crime,,
MOJ,LAA,17/01/18,Higher Crime,LEGAL AID FUND,ADAM D DAVIS QC,1387106:148782882,25340.87,Legal Aid Higher Crime,,
MOJ,LAA,24/01/18,Higher Crime,LEGAL AID FUND,ACHILLEA & CO,1389349:148834978,27586.64,Legal Aid Higher Crime,,
MOJ,LAA,10/01/18,Civil Representation,LEGAL AID FUND,ACCESS LAW LLP,1381324:3000002378350031,26568.00,Legal Aid Civil Representation,,
MOJ,LAA,24/01/18,Higher Crime,LEGAL AID FUND,ACA LAW LTD,1389614:148843230,83453.49,Legal Aid Higher Crime,,
MOJ,LAA,10/01/18,Higher Crime,LEGAL AID FUND,ACA LAW LTD,1380835:148751290,30836.52,Legal Aid Higher Crime,,
MOJ,LAA,31/01/18,Lower Crime,LEGAL AID FUND,ACA LAW LTD,1394894:148910620,29827.00,Legal Aid Lower Crime,,
MOJ,LAA,24/01/18,Higher Crime,LEGAL AID FUND,ACA LAW LTD,1389614:148865394,27394.77,Legal Aid Higher Crime,,
MOJ,LAA,31/01/18,Lower Crime,LEGAL AID FUND,ABV SOLICITORS,1395858:148910067,50000.00,Legal Aid Lower Crime,,
MOJ,LAA,31/01/18,Legal Help,LEGAL AID FUND,ABBOTSTONE LAW LLP,1398053:148909929,45363.00,Legal Aid Legal Help,,
MOJ,LAA,10/01/18,Higher Crime,LEGAL AID FUND,ABBEY SOLICITORS,1381090:148743898,95707.01,Legal Aid Higher Crime,,
MOJ,LAA,17/01/18,Higher Crime,LEGAL AID FUND,ABBEY SOLICITORS,1386481:148790672,71388.36,Legal Aid Higher Crime,,
MOJ,LAA,10/01/18,Higher Crime,LEGAL AID FUND,ABBEY SOLICITORS,1381090:148738529,30809.63,Legal Aid Higher Crime,,
MOJ,LAA,31/01/18,Lower Crime,LEGAL AID FUND,ABBEY SOLICITORS,1395893:148910241,25200.00,Legal Aid Lower Crime,,
MOJ,LAA,24/01/18,Higher Crime,LEGAL AID FUND,ABBEY LAW SOLICITORS,1390533:148835221,48800.77,Legal Aid Higher Crime,,
MOJ,LAA,24/01/18,Higher Crime,LEGAL AID FUND,9 JOCKEYS FIELDS LTD,1391465:148865207,105857.75,Legal Aid Higher Crime,,
